Workbook

Sheet B-Hill
B3: Meet - | C3: Hillsboro, Aug 26th, 2017 | I3: True 5K course
B4: Weather 70, cloudy | I4: 4773
B6: Varsity 5k | C6: 1st Mile | D6: 2m split | E6: 2m total | F6: 3m split | G6: 3m total | H6: 2&3 Avg | I6: Final Time | J6: Avg/mile | K6: Avg/1000 | L6: Place | M6: Corrected
B7: Meyer, Ryan | C7: 05:23:00 | D7: =+E7-C7 -> 05:37:00 | E7: 11:00:00 | F7: =+G7-E7 -> 05:40:37.712 | G7: =(+I7/4773)*4800 -> 16:40:37.712 | H7: =AVERAGE(F7,D7) -> 05:38:48.856 | I7: 16:35:00 | J7: =(+I7/4773)*1600 -> 05:33:32.571 | K7: =(+I7/4773)*1000 -> 03:28:27.857 | L7: 12 | M7: =(+I7/4773)*5000 -> 17:22:19.283
B8: Olsen, Eric | C8: 05:27:00 | D8: 05:42:00 | E8: 11:09:00 | F8: 05:46:42.803 | G8: 16:55:42.803 | H8: 05:44:21.402 | I8: 16:50:00 | J8: 05:38:34.268 | K8: 03:31:36.417 | L8: 19 | M8: 17:38:02.087
B9: Arnold, Adam | C9: 05:29:00 | D9: 05:46:00 | E9: 11:15:00 | F9: 05:55:47.894 | G9: 17:10:47.894 | H9: 05:50:53.947 | I9: 17:05:00 | J9: 05:43:35.965 | K9: 03:34:44.978 | L9: 25 | M9: 17:53:44.890
B10: Williamson, Joe | C10: 05:38:00 | D10: 05:51:00 | E10: 11:29:00 | F10: 06:02:55.022 | G10: 17:31:55.022 | H10: 05:56:57.511 | I10: 17:26:00 | J10: 05:50:38.341 | K10: 03:39:08.963 | L10: 34 | M10: 18:15:44.815
B11: Lornez, Cael | C11: 05:38:00 | D11: 05:57:00 | E11: 11:35:00 | F11: 06:09:59.434 | G11: 17:44:59.434 | H11: 06:03:29.717 | I11: 17:39:00 | J11: 05:54:59.811 | K11: 03:41:52.382 | L11: 43 | M11: 18:29:21.911
B12: Liberman, Chris | C12: 06:43:00 | D12: 07:06:00 | E12: 13:49:00 | F12: 07:06:03.583 | G12: 20:55:03.583 | H12: 07:06:01.791 | I12: 20:48:00 | J12: 06:58:21.194 | K12: 04:21:28.246 | L12: 123 | M12: 21:47:21.232
B13: Hettich, Daniel | C13: 07:00:00 | D13: 07:12:00 | E13: 14:12:00 | F13: 07:20:16.141 | G13: 21:32:16.141 | H13: 07:16:08.070 | I13: 21:25:00 | J13: 07:10:45.380 | K13: 04:29:13.363 | L13: 127 | M13: 22:26:06.813
B14: Gap time 1:04 | D14: Points | E14: =SUM(L7:L11) -> 133 | I14: Place | J14: 3rd/21 | K14: # runner | L14: 149
B15: JrH Boys 3k | C15: 1st Mile | F15: True 3k 2931 | I15: Final Time | J15: Avg/mile | K15: Avg/1000 | L15: Place | M15: Corrected
B16: Roehl, Quinn | C16: 05:40:00 | I16: 10:31:00 | J16: =(+I16/2931)*1600 -> 05:44:27.349 | K16: =(+I16/2931)*1000 -> 03:35:17.093 | L16: 1 | M16: =(+I16/2931)*3000 -> 10:45:51.279
B17: Mutzenberger, Wyatt | C17: 05:45:00 | I17: 10:46:00 | J17: 05:52:38.649 | K17: 03:40:24.156 | L17: 6 | M17: =(+I17/2931)*3000 -> 11:01:12.467
B18: Elde, Carter | C18: 06:20:00 | I18: 11:45:00 | J18: 06:24:51.095 | K18: 04:00:31.934 | L18: 21 | M18: 12:01:35.803
B19: Allan, Collin | C19: 06:18:00 | I19: 11:47:00 | J19: 06:25:56.602 | K19: 04:01:12.876 | L19: 24 | M19: 12:03:38.628
B20: Hoffman, Rylan | C20: 06:22:00 | I20: 11:49:00 | J20: 06:27:02.108 | K20: 04:01:53.818 | L20: 25 | M20: 12:05:41.453
B21: Polries, Jackson | C21: 06:37:00 | I21: 12:16:00 | J21: 06:41:46.448 | K21: 04:11:06.530 | L21: 30 | M21: 12:33:19.591
B22: Puckett, Alejandro | C22: 06:48:00 | I22: 11:59:00 | J22: 06:32:29.642 | K22: 04:05:18.526 | L22: 30 | M22: 12:15:55.578
B23: McLean, Dylan | C23: 06:40:00 | I23: 12:18:00 | J23: 06:42:51.955 | K23: 04:11:47.472 | L23: 39 | M23: 12:35:22.416
B24: Jackson, Finn | C24: 06:49:00 | I24: 12:24:00 | J24: 06:46:08.475 | K24: 04:13:50.297 | L24: 41 | M24: 12:41:30.890
B25: Hoverson, Brandon | C25: 06:35:00 | I25: 12:24:00 | J25: 06:46:08.475 | K25: 04:13:50.297 | L25: 42 | M25: =(+I25/2931)*3000 -> 12:41:30.890
B26: Stevens, Lane | C26: 06:53:00 | I26: 12:31:00 | J26: 06:49:57.748 | K26: 04:16:13.593 | L26: 43 | M26: =(+I26/2931)*3000 -> 12:48:40.778
B27: Westereng, Torrey | C27: 06:53:00 | I27: 12:31:00 | J27: 06:49:57.748 | K27: 04:16:13.593 | L27: 44 | M27: =(+I27/2931)*3000 -> 12:48:40.778
B28: Lunski, Edison | C28: 07:18:00 | I28: 13:02:00 | J28: 07:06:53.101 | K28: 04:26:48.188 | L28: 69 | M28: =(+I28/2931)*3000 -> 13:20:24.565
B29: Knudson, Jacob | C29: 07:49:00 | I29: 13:49:00 | J29: 07:32:32.508 | K29: 04:42:50.317 | L29: 84 | M29: =(+I29/2931)*3000 -> 14:08:30.952
B30: Gap time 1:20 | D30: Points | E30: 77 | I30: Place | J30: 2nd/18 | K30: # runner | L30: 124 | M30: RED PR

Sheet G-Hill
B3: Meet - | C3: Hillsboro,, Saturday Aug 26th, 2017 | I3: True 5K course
B4: Weather
I5: Course | J5: 4773
B6: Varsity 5k | C6: 1st Mile | D6: 2m split | E6: 2m total | F6: 3m split | G6: 3m total | H6: 2&3 Avg | I6: Final Time | J6: Avg/mile | K6: Avg/1000 | L6: Place | M6: Corrected
B7: Torrey, Rachel | C7: 05:50:00 | D7: =+E7-C7 -> 06:10:00 | E7: 12:00:00 | F7: =+G7-E7 -> 05:50:01.131 | G7: =(+I7/4773)*4800 -> 17:50:01.131 | H7: =AVERAGE(F7,D7) -> 06:00:00.566 | I7: 17:44:00 | J7: =(+I7/4773)*1600 -> 05:56:40.377 | K7: =(+I7/4773)*1000 -> 03:42:55.236 | L7: 1 | M7: =(+I7/4773)*5000 -> 18:34:36.179
B8: Roehl, Alexis | C8: 05:50:00 | D8: 06:10:00 | E8: 12:00:00 | F8: 06:14:09.277 | G8: 18:14:09.277 | H8: 06:12:04.639 | I8: 18:08:00 | J8: 06:04:43.092 | K8: 03:47:56.933 | L8: 2 | M8: 18:59:44.664 | O8: 21:19:00 | P8: =(+O8/5150)*5000 -> 20:41:44.854
B9: Weiss, Mikayla | C9: 05:50:00 | D9: 06:23:00 | E9: 12:13:00 | F9: 06:15:14.029 | G9: 18:28:14.029 | H9: 06:19:07.014 | I9: 18:22:00 | J9: 06:09:24.676 | K9: 03:50:52.923 | L9: 3 | M9: 19:14:24.613 | O9: 22:16:00 | P9: =(+O9/5150)*5000 -> 21:37:05.243
B10: Harrison, Lauren | C10: 06:07:00 | D10: 06:35:00 | E10: 12:42:00 | F10: 06:40:32.357 | G10: 19:22:32.357 | H10: 06:37:46.179 | I10: 19:16:00 | J10: 06:27:30.786 | K10: 04:02:11.741 | L10: 9 | M10: 20:10:58.705 | O10: 22:28:00 | P10: 21:48:44.272
B11: Roehl, Sophia | C11: 06:14:00 | D11: 07:02:00 | E11: 13:16:00 | F11: 06:47:46.273 | G11: 20:03:46.273 | H11: 06:54:53.136 | I11: 19:57:00 | J11: 06:41:15.424 | K11: 04:10:47.140 | L11: 21 | M11: 20:53:55.701 | O11: 23:02:00 | P11: 22:21:44.854
B12: Kindseth, Sijle | C12: 06:13:00 | D12: 07:01:00 | E12: 13:14:00 | F12: 07:06:52.043 | G12: 20:20:52.043 | H12: 07:03:56.021 | I12: 20:14:00 | J12: 06:46:57.348 | K12: 04:14:20.842 | L12: 23 | M12: 21:11:44.211 | O12: 23:20:00 | P12: 22:39:13.398
B13: Hunter, Aslinn | C13: 06:30:00 | D13: 07:21:00 | E13: 13:51:00 | F13: 07:10:05.619 | G13: 21:01:05.619 | H13: 07:15:32.810 | I13: 20:54:00 | J13: 07:00:21.873 | K13: 04:22:43.671 | L13: 33 | M13: 21:53:38.353 | O13: 24:17 | P13: 23:34:33.786
B14: Jackson, Maia | C14: 06:31:00 | D14: 07:34:00 | E14: 14:05:00 | F14: 07:40:20.553 | G14: 21:45:20.553 | H14: 07:37:10.277 | I14: 21:38:00 | J14: 07:15:06.851 | K14: 04:31:56.782 | L14: 52 | M14: 22:39:43.909 | O14: 24:45 | P14: 1.001213592
B15: Berry, Nora | C15: 06:40:00 | D15: 07:46:00 | E15: 14:26:00 | F15: 07:35:25.984 | G15: 22:01:25.984 | H15: 07:40:42.992 | I15: 21:54:00 | J15: 07:20:28.661 | K15: 04:35:17.913 | L15: 58 | M15: 22:56:29.566
B16: Kroeber, Maria | C16: 07:07:00 | D16: 07:35:00 | E16: 14:42:00 | F16: 07:28:29.038 | G16: 22:10:29.038 | H16: 07:31:44.519 | I16: 22:03:00 | J16: 07:23:29.679 | K16: 04:37:11.050 | L16: 62 | M16: 23:05:55.248
B17: Brunelle, Lillian | C17: 07:26:00 | I17: 23:47 | J17: 07:58:21.446 | K17: 04:58:58.404 | L17: 87 | M17: 24:54
B18: Green, Annika | C18: 08:15:00 | I18: 26:18 | J18: 08:48:58.529 | K18: 05:30:36.581 | L18: 116 | M18: 27:33
B19: Moore, Stephanie | C19: 08:15:00 | I19: 26:35 | J19: 08:54:40.453 | K19: 05:34:10.283 | L19: 120 | M19: 27:50
B20: Gap time 2:13 | D20: Points | E20: =SUM(L7:L11) -> 36 | I20: Place | J20: 1st/21 | K20: # runner | L20: 128
B21: JrH Girls 3k | C21: 1st Mile | I21: Final Time | J21: Avg/mile | K21: Avg/1000 | L21: Place
B22: Derenne, Marie | C22: 06:53:00 | I22: 12:49:00 | J22: =(+I22/2931)*1600 -> 06:59:47.308 | K22: =(+I22/2931)*1000 -> 04:22:22.068 | L22: 11 | M22: =(+I22/2931)*3000 -> 13:07:06.203
B23: Hynek, Hannah | C23: 06:57:00 | I23: 13:02:00 | J23: 07:06:53.101 | K23: 04:26:48.188 | L23: 13 | M23: 13:20:24.565
B24: Grzadzielewski, Kierstyn | C24: 07:05:00 | I24: 13:30:00 | J24: 07:22:10.194 | K24: 04:36:21.372 | L24: 21 | M24: 13:49:04.115
B25: Elden, Madison | C25: 07:13:00 | I25: 13:30:00 | J25: 07:22:10.194 | K25: 04:36:21.372 | L25: 22 | M25: 13:49:04.115
B26: Riley, Jillian | C26: 07:34:00 | I26: 14:20:00 | J26: 07:49:27.861 | K26: 04:53:24.913 | L26: 59 | M26: 14:40:14.739
B27: Swenson, Mallorie | C27: 07:55:00 | I27: 14:29:00 | J27: 07:54:22.641 | K27: 04:56:29.150 | L27: 62 | M27: 14:49:27.451
B28: Green, Clara | C28: 08:05:00 | I28: 15:26:00 | J28: 08:25:29.580 | K28: 05:15:55.988 | L28: 82 | M28: 15:47:47.963
B29: Fish, Adara | C29: 08:41:00 | I29: 16:21:00 | J29: 08:55:31.013 | K29: 05:34:41.883 | L29: 98 | M29: 16:44:05.650
B30: Spoor, Maggie | C30: 10:28:00 | I30: 19:36:00 | J30: 10:41:57.912 | K30: 06:41:13.695 | L30: 120 | M30: 20:03:41.085
C31: Points | D31: 126 | G31: Place | H31: 4th/21 | I31: Gap time | J31: =+I26-I22 -> 01:31:00 | K31: Total runners | L31: 120 | M31: RED =PR

Sheet B-North
B3: Meet - | C3: Northwood, Thurs, Aug 31st | I3: True 5K course | K3: 4975
B4: Weather | I4: True 4k Distance
I5: True 3k Distance
B6: Varsity 5k | C6: 1st Mile | D6: 2m split | E6: 2m total | F6: 3m split | G6: 3m total | H6: 2&3 Avg | I6: Final Time | J6: Avg/mile | K6: Avg/1000 | L6: Place
B7: Meyer, Ryan | C7: 05:07:00 | D7: =+E7-C7 -> 05:44:00 | E7: 10:51:00 | F7: =+G7-E7 -> 06:03:59.698 | G7: =(+I7/4975)*4800 -> 16:54:59.698 | H7: =AVERAGE(F7,D7) -> 05:53:59.849 | I7: 17:32:00 | J7: =(+I7/4975)*1600 -> 05:38:19.899 | K7: =(+I7/4975)*1000 -> 03:31:27.437 | L7: 6
B8: Olsen, Eric | C8: 05:29:00 | D8: 05:52:00 | E8: 11:21:00 | F8: 06:01:58.492 | G8: 17:22:58.492 | H8: 05:56:59.246 | I8: 18:01:00 | J8: 05:47:39.497 | K8: 03:37:17.186 | L8: 13
B9: Lornez, Cael | C9: 05:24:00 | D9: 06:08:00 | E9: 11:32:00 | F9: 06:24:44.623 | G9: 17:56:44.623 | H9: 06:16:22.312 | I9: 18:36:00 | J9: 05:58:54.874 | K9: 03:44:19.296 | L9: 22
B10: Harsell, Ethan | C10: 05:37:00 | D10: 06:12:00 | E10: 11:49:00 | F10: 06:08:42.513 | G10: 17:57:42.513 | H10: 06:10:21.256 | I10: 18:37:00 | J10: 05:59:14.171 | K10: 03:44:31.357 | L10: 23
B11: Green, Joseph | C11: 05:35:00 | D11: 06:23:00 | E11: 11:58:00 | F11: 06:47:56.985 | G11: 18:45:56.985 | H11: 06:35:28.492 | I11: 19:27:00 | J11: 06:15:18.995 | K11: 03:54:34.372 | L11: 32
B12: Swanson, Brenden | C12: 05:37:00 | D12: 06:34:00 | E12: 12:11:00 | F12: 06:57:08.442 | G12: 19:08:08.442 | H12: 06:45:34.221 | I12: 19:50:00 | J12: 06:22:42.814 | K12: 03:59:11.759 | L12: 37
C13: Points | D13: =+SUM(L7:L11) -> 96 | E13: Place | H13: 3rd/18 | I13: Gap time | J13: =+I11-I7 -> 01:55:00 | K13: # Runners | L13: 83
B14: JV 4k | C14: 1st Mile | D14: 2m split | E14: 2 m Total | F14: 1/2 mile | I14: Final Time | J14: Avg 1600 | K14: Avg 1000 | L14: Place
B15: Puckett, Alejandro | I15: 16:54:00 | J15: =(+I15/4000)*1600 -> 06:45:36 | K15: =(+I15/4000)*1000 -> 04:13:30 | L15: 11
B16: Vasichek, Tucker | I16: 16:57:00 | J16: =(+I16/4000)*1600 -> 06:46:48 | K16: =(+I16/4000)*1000 -> 04:14:15 | L16: 14
B17: Hoverson, Brandon | I17: 17:58:00 | J17: =(+I17/4000)*1600 -> 07:11:12 | K17: =(+I17/4000)*1000 -> 04:29:30 | L17: 28
B18: Hettich, Daniel | I18: 18:09:00 | J18: =(+I18/4000)*1600 -> 07:15:36 | K18: =(+I18/4000)*1000 -> 04:32:15 | L18: 29
B19: King, Sean | I19: 19:05:00 | J19: =(+I19/4000)*1600 -> 07:38:00 | K19: =(+I19/4000)*1000 -> 04:46:15 | L19: 44
C20: Points | D20: =+SUM(L15:L19) -> 126 | E20: Place | H20: 5th/14 | I20: Gap time | J20: =+I19-I15 -> 02:11:00 | K20: # Runners | L20: 57
B21: JrH Boys 3k | C21: 1st Mile | F21: True 3k 2975 | I21: Final Time | J21: Avg/mile | K21: Avg/1000 | L21: Place
B22: Williamson, Joe | C22: 05:12:00 | I22: 10:48:00 | J22: =(+I22/2975)*1600 -> 05:48:30.252 | K22: =(+I22/2975)*1000 -> 03:37:48.908 | L22: 1
B23: Roehl, Quinn | C23: 05:12:00 | I23: 10:59:00 | J23: 05:54:25.210 | K23: 03:41:30.756 | L23: 2
B24: Mutzenberger, Wyatt | C24: 05:12:00 | I24: 11:00:00 | J24: 05:54:57.479 | K24: 03:41:50.924 | L24: 3
B25: Elde, Carter | C25: 06:02:00 | I25: 12:16:00 | J25: 06:35:49.916 | K25: 04:07:23.697 | L25: 11
B26: McLean, Dylan | C26: 06:07:00 | I26: 12:18:00 | J26: 06:36:54.454 | K26: 04:08:04.034 | L26: 12
B27: Polries, Jackson | C27: 06:07:00 | I27: 12:36:00 | J27: 06:46:35.294 | K27: 04:14:07.059 | L27: 19
B28: Hoffman, Rylan | C28: 06:01:00 | I28: 12:38:00 | J28: 06:47:39.832 | K28: 04:14:47.395 | L28: 20
B29: Sum, Emmett | C29: 06:26:00 | I29: 13:02:00 | J29: 07:00:34.286 | K29: 04:22:51.429 | L29: 30
B30: Jackson, Finn | C30: 06:23:00 | I30: 13:03:00 | J30: 07:01:06.555 | K30: 04:23:11.597 | L30: 31
B31: Stevens, Lane | C31: 06:23:00 | I31: 13:06:00 | J31: 07:02:43.361 | K31: 04:24:12.101 | L31: 32
B32: Haug, Simon | C32: 06:23:00 | I32: 13:29:00 | J32: 07:15:05.546 | K32: 04:31:55.966 | L32: 35
B33: Lunski, Edison | C33: 06:42:00 | I33: 13:44:00 | J33: 07:23:09.580 | K33: 04:36:58.487 | L33: 40
B34: Kunznia, Zach | C34: 07:51:00 | I34: 17:37:00 | J34: 09:28:28.235 | K34: 05:55:17.647 | L34: 72
C35: Points | D35: =+SUM(L22:L26) -> 29 | E35: Place | H35: 1st/13 | I35: Gap time | J35: =+I26-I22 -> 01:30:00 | K35: # Runners | L35: 78

Sheet G-North
B3: Meet - | C3: Northwood, Thurs, Aug 31st | I3: True 5K course | K3: 4975
B4: Weather | I4: True 4k Distance
I5: True 3k Distance | K5: 2995
B6: Varsity 5k | C6: 1st Mile | D6: 2m split | E6: 2m total | F6: 3m split | G6: 3m total | H6: 2&3 Avg | I6: Final Time | J6: Avg/mile | K6: Avg/1000 | L6: Place
B7: Roehl, Alexis | C7: 05:35:00 | D7: =+E7-C7 -> 06:14:00 | E7: 11:49:00 | F7: =+G7-E7 -> 06:19:19.296 | G7: =(+I7/4975)*4800 -> 18:08:19.296 | H7: =AVERAGE(F7,D7) -> 06:16:39.648 | I7: 18:48:00 | J7: =(+I7/4975)*1600 -> 06:02:46.432 | K7: =(+I7/4975)*1000 -> 03:46:44.020 | L7: 1
B8: Torrey, Rachel | C8: 05:44:00 | D8: 06:12:00 | E8: 11:56:00 | F8: 06:23:53.970 | G8: =(+I8/4975)*4800 -> 18:19:53.970 | H8: 06:17:56.985 | I8: 19:00:00 | J8: =(+I8/4975)*1600 -> 06:06:37.990 | K8: 03:49:08.744 | L8: 2
B9: Weiss, Mikayla | C9: 05:45:00 | D9: 06:36:00 | E9: 12:21:00 | F9: 06:44:14.774 | G9: 19:05:14.774 | H9: 06:40:07.387 | I9: 19:47:00 | J9: 06:21:44.925 | K9: 03:58:35.578 | L9: 4
B10: Harrison, Lauren | C10: 06:05:00 | D10: 06:38:00 | E10: 12:43:00 | F10: 06:51:11.457 | G10: 19:34:11.457 | H10: 06:44:35.729 | I10: 20:17:00 | J10: 06:31:23.819 | K10: 04:04:37.387 | L10: 7
B11: Roehl, Sophia | C11: 06:14:00 | D11: 07:10:00 | E11: 13:24:00 | F11: 06:47:49.146 | G11: 20:11:49.146 | H11: 06:58:54.573 | I11: 20:56:00 | J11: 06:43:56.382 | K11: 04:12:27.739 | L11: 11
B12: Hunter, Aslinn | C12: 06:11:00 | D12: 07:10:00 | E12: 13:21:00 | F12: 07:23:37.387 | G12: 20:44:37.387 | H12: 07:16:48.693 | I12: 21:30:00 | J12: 06:54:52.462 | K12: 04:19:17.789 | L12: 20
B13: Kindseth, Sijle | C13: 06:23:00 | D13: 07:37:00 | E13: 14:00:00 | F13: 07:55:03.317 | G13: 21:55:03.317 | H13: 07:46:01.658 | I13: 22:43:00 | J13: 07:18:21.106 | K13: 04:33:58.191 | L13: 31
C14: Points | D14: =+SUM(L7:L11) -> 25 | E14: Place | H14: 1st/17 | I14: Gap time | J14: =+I11-I7 -> 02:08:00 | K14: # Runners | L14: 61
B15: JV 4k | C15: 1st Mile | D15: 2m split | E15: 2 m Total | F15: 1/2 mile | I15: Final Time | J15: Avg 1600 | K15: Avg 1000 | L15: Place
B16: Kroeber, Maria | I16: 18:50:00 | J16: =(+I16/4000)*1600 -> 07:32:00 | K16: =(+I16/4000)*1000 -> 04:42:30 | L16: 4
B17: Berry, Nora | I17: 19:06:00 | J17: 07:38:24 | K17: 04:46:30 | L17: 5
B18: Grzadzielewski, Kierstyn | I18: 19:13:00 | J18: 07:41:12 | K18: 04:48:15 | L18: 7
B19: Brunelle, Lillian | I19: 20:31:00 | J19: 08:12:24 | K19: 05:07:45 | L19: 14
B20: Bertsch, Brenna | I20: 20:41:00 | J20: 08:16:24 | K20: 05:10:15 | L20: 15
B21: Green, Annika | I21: 21:17:00 | J21: 08:30:48 | K21: 05:19:15 | L21: 17
B22: Moore, Stephanie | I22: DNF
C23: Points | D23: 45 | E23: Place | H23: 1st/10 | I23: Gap time | J23: =+I20-I16 -> 01:51:00 | K23: # Runners | L23: 36
B24: JrH Girls 3k | C24: 1st Mile | I24: Final Time | J24: Avg/mile | K24: Avg/1000 | L24: Place
B25: Hynek, Hannah | I25: 13:15:00 | J25: =(+I25/3000)*1600 -> 07:04:00 | K25: =(+I25/3000)*1000 -> 04:25:00 | L25: 3
B26: Derenne, Marie | I26: 13:27:00 | J26: =(+I26/3000)*1600 -> 07:10:24 | K26: =(+I26/3000)*1000 -> 04:29:00 | L26: 4
B27: Elden, Madison | I27: 13:28:00 | J27: 07:10:56 | K27: 04:29:20 | L27: 5
B28: Swenson, Mallorie | C28: 06:59:00 | I28: 14:29:00 | J28: 07:43:28 | K28: 04:49:40 | L28: 20
B29: Riley, Jillian | C29: 06:52:00 | I29: 14:43:00 | J29: 07:50:56 | K29: 04:54:20 | L29: 26
B30: Green, Clara | C30: 07:51:00 | I30: 16:26:00 | J30: 08:45:52 | K30: 05:28:40 | L30: 39
B31: Thorpe, Tabitha | C31: 07:51:00 | I31: 18:05:00 | J31: 09:38:40 | K31: 06:01:40 | L31: 49
B32: Spoor, Maggie | C32: 08:46:00 | I32: 20:43:00 | J32: 11:02:56 | K32: 06:54:20 | L32: 57
C33: Points | D33: 60 | E33: Place | H33: 3rd/15 | I33: Gap time | J33: =+I29-I25 -> 01:28:00 | K33: # Runners | L33: 57

Sheet WF - G
B3: Meet - | C3: West Fargo Sept 9, 2017 | I3: True 5K course | K3: 5083
B4: Weather | C4: 77, very windy, lots of corners
I5: Course | J5: 5083
B6: Varsity 5k | C6: 1st Mile | D6: 2m split | E6: 2m total | F6: 3m split | G6: 3m total | H6: 2&3 Avg | I6: Final Time | J6: Avg/mile | K6: Avg/1000 | L6: Place
B7: Roehl, Alexis | C7: 05:51:00 | D7: =+E7-C7 -> 06:37:00 | E7: 12:28:00 | F7: =+G7-E7 -> 06:03:53.914 | G7: =(+M7/5083)*4800 -> 18:31:53.914 | H7: =AVERAGE(F7,D7) -> 06:20:26.957 | I7: 19:57:00 | J7: =(+I7/5083)*1600 -> 06:16:47.122 | K7: =(+I7/5083)*1000 -> 03:55:29.451 | L7: 1 | M7: =(+I7/5083)*5000 -> 19:37:27.256
B8: Weiss, Mikayla | C8: 05:59:00 | D8: 06:42:00 | E8: 12:41:00 | F8: 06:13:11.537 | G8: =(+M8/5083)*4800 -> 18:54:11.537 | H8: 06:27:35.768 | I8: 20:21:00 | J8: 06:24:20.397 | K8: 04:00:12.748 | L8: 2 | M8: 20:01:03.742
B9: Harrison, Lauren | C9: 06:12:00 | D9: 06:59:00 | E9: 13:11:00 | F9: 06:34:16.921 | G9: 19:45:16.921 | H9: 06:46:38.461 | I9: 21:16:00 | J9: 06:41:39.154 | K9: 04:11:01.971 | L9: 6 | M9: 20:55:09.856
B10: Roehl, Sophia | C10: 06:24:00 | D10: 07:35:00 | E10: 13:59:00 | F10: 06:55:01.257 | G10: 20:54:01.257 | H10: 07:15:00.628 | I10: 22:30:00 | J10: 07:04:56.754 | K10: 04:25:35.471 | L10: 16 | M10: 22:07:57.356
B11: Berry, Nora | C11: 06:44:00 | D11: 07:36:00 | E11: 14:20:00 | F11: 07:10:14.893 | G11: 21:30:14.893 | H11: 07:23:07.447 | I11: 23:09:00 | J11: 07:17:13.327 | K11: 04:33:15.829 | L11: 26 | M11: 22:46:19.146
B12: Hunter, Aislinn | C12: 06:39:00 | D12: 07:44:00 | E12: 14:23:00 | F12: 07:43:28.529 | G12: 22:06:28.529 | H12: 07:43:44.265 | I12: 23:48 | J12: 07:29:29.900 | K12: 04:40:56.187 | L12: 32 | M12: 23:24:40.936
B13: Kindseth, Silje | C13: 06:33:00 | D13: 07:57:00 | E13: 14:30:00 | F13: 08:01:33.355 | G13: 22:31:33.355 | H13: 07:59:16.677 | I13: 24:15 | J13: 07:37:59.835 | K13: 04:46:14.897 | L13: 39 | M13: 23:51:14.484
C14: Points | D14: 51 | G14: Place | H14: 1st/9 | I14: Gap time | J14: 03:09:00 | K14: Total runners | L14: 57
B15: JV Girls 4k | C15: 1st Mile | D15: 2m split | E15: 2 m Total | F15: 1/2 mile | I15: Final Time | J15: Avg/mile | K15: Avg/1000 | L15: Place
B16: Jackson, Maia | C16: 07:05:00 | D16: =+E16-C16 -> 07:41:00 | E16: 14:46:00 | F16: =+G16-E16 -> 07:37:11.746 | G16: =(+M16/5083)*4800 -> 22:23:11.746 | H16: =AVERAGE(F16,D16) -> 07:39:05.873 | I16: 24:06 | J16: =(+I16/5083)*1600 -> 07:35:09.856 | K16: =(+I16/5083)*1000 -> 04:44:28.660 | L16: 1 | M16: =(+I16/5083)*5000 -> 23:42:23.301
B17: Kroeber, Maria | C17: 07:24:00 | D17: =+E17-C17 -> 07:46:00 | E17: 15:10:00 | F17: =+G17-E17 -> 07:28:59.229 | G17: =(+M17/5083)*4800 -> 22:38:59.229 | H17: =AVERAGE(F17,D17) -> 07:37:29.614 | I17: 24:23 | J17: =(+I17/5083)*1600 -> 07:40:30.927 | K17: =(+I17/5083)*1000 -> 04:47:49.329 | L17: 2 | M17: =(+I17/5083)*5000 -> 23:59:06.646
B18: Grzadzielewski, Kier | C18: 07:23:00 | D18: =+E18-C18 -> 07:48:00 | E18: 15:11:00 | F18: =+G18-E18 -> 07:46:33.914 | G18: =(+M18/5083)*4800 -> 22:57:33.914 | H18: =AVERAGE(F18,D18) -> 07:47:16.957 | I18: 24:43 | J18: =(+I18/5083)*1600 -> 07:46:48.656 | K18: =(+I18/5083)*1000 -> 04:51:45.410 | L18: 3 | M18: =(+I18/5083)*5000 -> 1.013044571
B19: Brunelle, Lillian | C19: 07:40:00 | D19: =+E19-C19 -> 08:20:00 | E19: 16:00:00 | F19: =+G19-E19 -> 08:11:52.655 | G19: =(+M19/5083)*4800 -> 1.008248323 | H19: =AVERAGE(F19,D19) -> 08:15:56.328 | I19: 26:03 | J19: =(+I19/5083)*1600 -> 08:11:59.575 | K19: =(+I19/5083)*1000 -> 05:07:29.734 | L19: 7 | M19: =(+I19/5083)*5000 -> 1.067692963
B20: Green, Annika | C20: 08:05:00 | D20: =+E20-C20 -> 08:56:00 | E20: 17:01:00 | F20: =+G20-E20 -> 08:07:32.445 | G20: =(+M20/5083)*4800 -> 1.047597745 | H20: =AVERAGE(F20,D20) -> 08:31:46.223 | I20: 27:04 | J20: =(+I20/5083)*1600 -> 08:31:11.651 | K20: =(+I20/5083)*1000 -> 05:19:29.782 | L20: 17 | M20: =(+I20/5083)*5000 -> 1.109362363
C21: Points | D21: 30 | G21: Place | H21: 1st/7 | I21: Gap time | K21: Total runners | L21: 37
B22: Middle School 3k | C22: 1st Mile | I22: Final Time | J22: Avg/mile | K22: Avg/1000 | L22: Place
B23: Hynek, Hannah | C23: 06:52:00 | I23: 14:17:00 | J23: =(+I23/3191)*1600 -> 07:09:42.513 | K23: =(+I23/3191)*1000 -> 04:28:34.071 | L23: 3 | M23: =(+I23/3191)*3000 -> 13:25:42.212
B24: Derenne, Marie | C24: 07:25:00 | I24: 14:57:00 | J24: 07:29:45.898 | K24: 04:41:06.186 | L24: 7 | M24: 14:03:18.558
B25: Elden, Madison | C25: 07:26:00 | I25: 14:57:00 | J25: 07:29:45.898 | K25: 04:41:06.186 | L25: 8 | M25: 14:03:18.558
B26: Bertsch, Brenna | C26: 07:05:00 | I26: 15:22:00 | J26: 07:42:18.013 | K26: 04:48:56.258 | L26: 14 | M26: 14:26:48.775
B27: Riley, Jillian | C27: 07:39:00 | I27: 16:23:00 | J27: 08:12:53.175 | K27: 05:08:03.234 | L27: 25 | M27: 15:24:09.702
B28: Swenson, Mallorie | C28: 08:06:00 | I28: 16:29:00 | J28: 08:15:53.682 | K28: 05:09:56.051 | L28: 28 | M28: 15:29:48.154
B29: Green, Clara | C29: 08:41:00 | I29: 17:08:00 | J29: 08:35:26.982 | K29: 05:22:09.364 | L29: 35 | M29: 16:06:28.092
B30: Combs, Allison | C30: 08:42:00 | I30: 18:13:00 | J30: 09:08:02.482 | K30: 05:42:31.551 | L30: 44 | M30: 17:07:34.654
B31: Thorpe, Tabitha | C31: 08:43:00 | I31: 19:00:00 | J31: 09:31:36.459 | K31: 05:57:15.287 | L31: 46 | M31: 17:51:45.860
B32: Spoor, Maggie | C32: 10:04:00 | I32: 21:48:00 | J32: 10:55:50.674 | K32: 06:49:54.171 | L32: 53 | M32: 20:29:42.513
C33: Points | G33: Place | I33: Gap time | K33: Total runners | L33: 54

Sheet WF - B
B3: Meet - | C3: West Fargo, Sept 9, 2019 | I3: True 5K course
B4: Weather
B6: Varsity/JV 5k | C6: 1st Mile | D6: 2m split | E6: 2m total | F6: 3m split | G6: 3m total | H6: 2&3 Avg | I6: Final Time | J6: Avg/mile | K6: Avg/1000 | L6: Place
B7: Meyer, Ryan | C7: 05:27:00 | D7: =+E7-C7 -> 05:45:00 | E7: 11:12:00 | F7: =+G7-E7 -> 05:58:15.463 | G7: =(+I7/5083)*4800 -> 17:10:15.463 | H7: =AVERAGE(F7,D7) -> 05:51:37.732 | I7: 18:11:00 | J7: =(+I7/5083)*1600 -> 05:43:25.154 | K7: =(+I7/5083)*1000 -> 03:34:38.222 | L7: 4 | M7: =(+I7/5083)*5000 -> 17:53:11.108
B8: Olsen, Eric | C8: 05:44:00 | D8: 05:58:00 | E8: 11:42:00 | F8: 06:12:38.458 | G8: =(+I8/5083)*4800 -> 17:54:38.458 | H8: 06:05:19.229 | I8: 18:58:00 | J8: 05:58:12.819 | K8: 03:43:53.012 | L8: 10 | M8: 18:39:25.060 | O8: 21:44:00 | P8: =(+O8/5083)*5000 -> 21:22:42.424
B9: Arnold, Adam | C9: 05:42:00 | D9: 06:04:00 | E9: 11:46:00 | F9: 06:09:35.117 | G9: 17:55:35.117 | H9: 06:06:47.559 | I9: 18:59:00 | J9: 05:58:31.706 | K9: 03:44:04.816 | L9: 11 | M9: 18:40:24.080
B10: Lorenz, Cael | C10: 05:42:00 | D10: 06:04:00 | E10: 11:46:00 | F10: 06:29:24.966 | G10: 18:15:24.966 | H10: 06:16:42.483 | I10: 19:20:00 | J10: 06:05:08.322 | K10: 03:48:12.701 | L10: 15 | M10: 19:01:03.506
B11: Harsell, Ethan | C11: 06:02:00 | D11: 06:22:00 | E11: 12:24:00 | F11: 06:12:11.474 | G11: 18:36:11.474 | H11: 06:17:05.737 | I11: 19:42:00 | J11: 06:12:03.825 | K11: 03:52:32.390 | L11: 19 | M11: 19:22:41.952
B12: Roehl, Quinn | C12: 05:48:00 | D12: 06:24:00 | E12: 12:12:00 | F12: 06:25:08.133 | G12: 18:37:08.133 | H12: 06:24:34.066 | I12: 19:43:00 | J12: 06:12:22.711 | K12: 03:52:44.194 | L12: 20 | M12: 19:23:40.972
B13: Mutzenberger, Wyatt | C13: 05:48:00 | D13: 06:39:00 | E13: 12:27:00 | F13: 06:50:44.489 | G13: 19:17:44.489 | H13: 06:44:52.245 | I13: 20:26:00 | J13: 06:25:54.830 | K13: 04:01:11.769 | L13: 27 | M13: 20:05:58.843
B14: Williamson, Joe | C14: 05:48:00 | D14: 06:34:00 | E14: 12:22:00 | F14: 06:59:31.127 | G14: 19:21:31.127 | H14: 06:46:45.564 | I14: 20:30:00 | J14: 06:27:10.376 | K14: 04:01:58.985 | L14: 30 | M14: 20:09:54.924
B15: Swanson, Branden | C15: 06:08:00 | D15: 06:53:00 | E15: 13:01:00 | F15: 07:00:10.824 | G15: 20:01:10.824 | H15: 06:56:35.412 | I15: 21:12:00 | J15: 06:40:23.608 | K15: 04:10:14.755 | L15: 38 | M15: 20:51:13.775
B16: Green, Joseph | C16: 06:09:00 | D16: 07:22:00 | E16: 13:31:00 | F16: 07:43:50.262 | G16: 21:14:50.262 | H16: 07:32:55.131 | I16: 22:30:00 | J16: 07:04:56.754 | K16: 04:25:35.471 | L16: 55 | M16: 22:07:57.356
C17: Points | D17: 59 | G17: Place | H17: 2nd/9 | I17: Gap time | J17: =+M11-M7 -> 01:29:30.844 | K17: Total runners | L17: 71
B18: JV Boys 5k | C18: 1st Mile | D18: 2m split | E18: 2m total | F18: 3m split | G18: 3m total | H18: 2&3 Avg | I18: Final Time | J18: Avg/mile | K18: Avg/1000 | L18: Place
B19: Darland, Noah | C19: 06:52:00 | D19: =+E19-C19 -> 07:49:00 | E19: 14:41:00 | F19: =+G19-E19 -> 08:24:55.137 | G19: =(+M19/4773)*4800 -> 23:05:55.137 | H19: =AVERAGE(F19,D19) -> 08:06:57.568 | I19: 23:21:00 | J19: =(+I19/5083)*1600 -> 07:20:59.965 | K19: =(+I19/5083)*1000 -> 04:35:37.478 | L19: 15 | M19: =(+I19/5083)*5000 -> 22:58:07.389
B20: Liberman, Chris | C20: 06:42:00 | D20: =+E20-C20 -> 07:20:00 | E20: 14:02:00 | F20: =+G20-E20 -> 08:41:09.992 | G20: =(+M20/4773)*4800 -> 22:43:09.992 | H20: =AVERAGE(F20,D20) -> 08:00:34.996 | I20: 22:58:00 | J20: =(+I20/5083)*1600 -> 07:13:45.575 | K20: =(+I20/5083)*1000 -> 04:31:05.985 | L20: 17 | M20: =(+I20/5083)*5000 -> 22:35:29.923
B21: King, Sean | C21: 07:22:00 | D21: =+E21-C21 -> 07:51:00 | E21: 15:13:00 | F21: =+G21-E21 -> 09:08:06.051 | G21: =(+M21/4773)*4800 -> 1.014653367 | H21: =AVERAGE(F21,D21) -> 08:29:33.025 | I21: 24:37 | J21: =(+I21/5083)*1600 -> 07:44:55.337 | K21: =(+I21/5083)*1000 -> 04:50:34.586 | L21: 24 | M21: =(+I21/5083)*5000 -> 1.008945942
C22: Points | G22: Place | I22: Gap time | K22: Total runners | L22: 33
B23: Middle School 3k | C23: 1st Mile | E23: 3k = 3191 | I23: Final Time | J23: Avg/mile | K23: Avg/1000 | L23: Place
B24: Elde, Carter | C24: 06:21:00 | I24: 12:50:00 | J24: =(+I24/3191)*1600 -> 06:26:05.152 | K24: =(+I24/3191)*1000 -> 04:01:18.220 | L24: 17 | M24: =(+I24/3191)*3000 -> 12:03:54.660
B25: Hoffman, Rylan | C25: 06:21:00 | I25: 13:07:00 | J25: =(+I25/3191)*1600 -> 06:34:36.590 | K25: =(+I25/3191)*1000 -> 04:06:37.869 | L25: 21 | M25: 12:19:53.607
B26: McLean, Dylan | C26: 06:47:00 | I26: 13:19:00 | J26: 06:40:37.606 | K26: 04:10:23.504 | L26: 26 | M26: 12:31:10.511
B27: Polries, Jackson | C27: 06:36:00 | I27: 13:26:00 | J27: 06:44:08.198 | K27: 04:12:35.124 | L27: 30 | M27: 12:37:45.371
B28: Allan, Collin | C28: 06:25:00 | I28: 13:26:00 | J28: 06:44:08.198 | K28: 04:12:35.124 | L28: 31 | M28: 12:37:45.371
B29: Jackson, Finn | C29: 06:47:00 | I29: 13:31:00 | J29: 06:46:38.621 | K29: 04:14:09.138 | L29: 33 | M29: 12:42:27.415
B30: Stevens, Lane | C30: 06:41:00 | I30: 13:36:00 | J30: 06:49:09.044 | K30: 04:15:43.153 | L30: 37 | M30: 12:47:09.458
B31: Vasichek, Tucker | C31: 06:35:00 | I31: 14:09:00 | J31: 07:05:41.836 | K31: 04:26:03.648 | L31: 43 | M31: 13:18:10.943
B32: Westereng, Torrey | C32: 06:35:00 | I32: 14:12:00 | J32: 07:07:12.090 | K32: 04:27:00.056 | L32: 44 | M32: 13:21:00.169
B33: Hoverson, Brandon | C33: 07:04:00 | I33: 14:19:00 | J33: 07:10:42.683 | K33: 04:29:11.677 | L33: 49 | M33: 13:27:35.030
B34: Haug, Simon | C34: 07:09:00 | I34: 14:24:00 | J34: 07:13:13.106 | K34: 04:30:45.691 | L34: 52 | M34: 13:32:17.073
B35: Sum, Emmett | C35: 07:14:00 | I35: 14:59:00 | J35: 07:30:46.067 | K35: 04:41:43.792 | L35: 58 | M35: 14:05:11.376
B36: Lunski, Edison | C36: 07:31:00 | I36: 15:07:00 | J36: 07:34:46.744 | K36: 04:44:14.215 | L36: 63 | M36: 14:12:42.645
B37: Knudson, Jacob | C37: 07:58:00 | I37: 15:55:00 | J37: 07:58:50.805 | K37: 04:59:16.753 | L37: 68 | M37: 14:57:50.260
B38: Dallum, Levi | C38: 08:22:00 | I38: 16:27:00 | J38: 08:14:53.513 | K38: 05:09:18.446 | L38: 74 | M38: 15:27:55.337
B39: Kunznia, Zach | C39: 09:13:00 | I39: 18:26:00 | J39: 09:14:33.582 | K39: 05:46:35.989 | L39: 85 | M39: 17:19:47.966
C41: Points | D41: 125 | G41: Place | H41: 4th/9 | I41: Gap time | K41: Total runners | L41: 90

Sheet Bism - G
B3: Sept 16th, 2017 | C3: Bismarck | I3: True 5K course distance:
B4: Weather: | I4: 4987
B6: Varsity 5k | C6: 1st Mile | D6: 2m split | E6: 2m total | F6: 3m split | G6: 3m total | H6: 2&3 Avg | I6: Final Time | J6: Avg 1600 | K6: Avg 1000 | L6: Place
B7: Torrey, Rachel | C7: 05:41:00 | D7: =+E7-C7 -> 06:22:00 | E7: 12:03:00 | F7: =+G7-E7 -> 05:38:45.600 | G7: =(+I7/5000)*4800 -> 17:41:45.600 | H7: =AVERAGE(F7,D7) -> 06:00:22.800 | I7: 18:26:00 | J7: =(+I7/5000)*1600 -> 05:53:55.200 | K7: =(+I7/5000)*1000 -> 03:41:12 | L7: 3
B8: Roehl, Alexis | C8: 05:41:00 | D8: 06:17:00 | E8: 11:58:00 | F8: 05:56:14.400 | G8: 17:54:14.400 | H8: 06:06:37.200 | I8: 18:39:00 | J8: 05:58:04.800 | K8: 03:43:48 | L8: 4
B9: Weiss, Mikayla | C9: 05:55:00 | D9: 06:18:00 | E9: 12:13:00 | F9: 05:52:45.600 | G9: 18:05:45.600 | H9: 06:05:22.800 | I9: 18:51:00 | J9: 06:01:55.200 | K9: 03:46:12 | L9: 6
B10: Harrison, Lauren | C10: 06:13:00 | D10: 06:44:00 | E10: 12:57:00 | F10: 06:12:07.200 | G10: 19:09:07.200 | H10: 06:28:03.600 | I10: 19:57:00 | J10: 06:23:02.400 | K10: 03:59:24 | L10: 17
B11: Roehl, Sophia | C11: 06:27:00 | D11: 07:28:00 | E11: 13:55:00 | F11: 06:02:07.200 | G11: 19:57:07.200 | H11: 06:45:03.600 | I11: 20:47:00 | J11: 06:39:02.400 | K11: 04:09:24 | L11: 25
B12: Hynek, Hannah | C12: 06:56:00 | D12: 07:18:00 | E12: 14:14:00 | F12: 06:49:21.600 | G12: 21:03:21.600 | H12: 07:03:40.800 | I12: 21:56:00 | J12: 07:01:07.200 | K12: 04:23:12 | L12: 47
B13: Berry, Nora | C13: 06:56:00 | D13: 07:18:00 | E13: 14:14:00 | F13: 07:07:36 | G13: 21:21:36 | H13: 07:12:48 | I13: 22:15:00 | J13: 07:07:12 | K13: 04:27:00 | L13: 53
B14: Grzad, Kierystyn | C14: 07:06:00 | D14: 07:52:00 | E14: 14:58:00 | F14: 07:16:24 | G14: 22:14:24 | H14: 07:34:12 | I14: 23:10:00 | J14: 07:24:48 | K14: 04:38:00 | L14: 66
C15: Points | D15: 55 | E15: Place | H15: 1st/12 | I15: Gap time | J15: =+I11-I7 -> 02:21:00 | K15: # Runners | L15: 103
B16: JV 4k | C16: 1st Mile | D16: 2m split | E16: 2 m Total | F16: 1/2 mile | I16: Final Time | J16: Avg 1600 | K16: Avg 1000 | L16: Place
B17: Hunter, Aislinn | C17: 06:41:00 | D17: =+E17-C17 -> 06:35:48 | E17: =(+I17/4000)*3200 -> 13:16:48 | F17: =+I17-E17 -> 03:19:12 | I17: 16:36:00 | J17: =(+I17/4000)*1600 -> 06:38:24 | K17: =(+I17/4000)*1000 -> 04:09:00 | L17: 1
B18: Jackson, Maia | C18: 06:32:00 | D18: 07:05:36 | E18: 13:37:36 | F18: 03:24:24 | I18: 17:02:00 | J18: 06:48:48 | K18: 04:15:30 | L18: 5
B19: Madison, Elden | C19: 07:08:00 | D19: 06:47:12 | E19: 13:55:12 | F19: 03:28:48 | I19: 17:24:00 | J19: 06:57:36 | K19: 04:21:00 | L19: 11
B20: Kroeber, Maria | C20: 07:09:00 | D20: 06:56:36 | E20: 14:05:36 | F20: 03:31:24 | I20: 17:37:00 | J20: 07:02:48 | K20: 04:24:15 | L20: 16
B21: Bertsch, Brenna | C21: 07:09:00 | D21: 07:16:36 | E21: 14:25:36 | F21: 03:36:24 | I21: 18:02:00 | J21: 07:12:48 | K21: 04:30:30 | L21: 28
B22: Bruenelle, Lillian | C22: 07:33:00 | D22: 07:11:48 | E22: 14:44:48 | F22: 03:41:12 | I22: 18:26:00 | J22: 07:22:24 | K22: 04:36:30 | L22: 30
B23: Derenne, Marie | C23: 07:13:00 | D23: 07:50:12 | E23: 15:03:12 | F23: 03:45:48 | I23: 18:49:00 | J23: 07:31:36 | K23: 04:42:15 | L23: 33
B24: Moore, Stephanie | C24: 08:30:00 | D24: 07:59:36 | E24: 16:29:36 | F24: 04:07:24 | I24: 20:37:00 | J24: 08:14:48 | K24: 05:09:15 | L24: 58
C25: Points | D25: 61 | E25: Place | H25: 2nd/7 | I25: Gap time | J25: =+I21-I17 -> 01:26:00 | K25: # Runners | L25: 79
B26: Jr High Girls 3k | C26: 1st mile | D26: 2m split | E26: 2 m Total | F26: 1/2 mile | I26: Final Time | J26: Avg mile | K26: Avg 1000 | L26: Place
B27: Riley, Jillian | C27: 07:23:00 | I27: 13:44:00 | J27: =(+I27/3000)*1600 -> 07:19:28 | K27: =(+I27/3000)*1000 -> 04:34:40 | L27: 28
B28: Combs, Allison | C28: 08:30:00 | I28: 16:05:00 | J28: =(+I28/3000)*1600 -> 08:34:40 | K28: =(+I28/3000)*1000 -> 05:21:40 | L28: 78
B29: Fish, Adara | C29: 08:55:00 | I29: 16:54:00 | J29: =(+I29/3000)*1600 -> 09:00:48 | K29: =(+I29/3000)*1000 -> 05:38:00 | L29: 85
B30: Long, LaWren | C30: 09:26:00 | I30: 17:28:00 | J30: =(+I30/3000)*1600 -> 09:18:56 | K30: =(+I30/3000)*1000 -> 05:49:20 | L30: 92
B31: Merchant, Anna | C31: 09:55:00 | I31: 18:53:00 | J31: =(+I31/3000)*1600 -> 10:04:16 | K31: =(+I31/3000)*1000 -> 06:17:40 | L31: 95
C32: Points | D32: 378 | E32: Place | H32: 10th/11 | I32: Gap time | J32: =+I31-I27 -> 05:09:00 | K32: # Runners | L32: 97

Sheet Bism- B
B3: Sept 16th, 2017 | C3: Bismarck
B4: Weather
B6: Varsity 5k | C6: 1st Mile | D6: 2m split | E6: 2m total | F6: 3m split | G6: 3m total | H6: 2&3 Avg | I6: Final Time | J6: Avg/mile | K6: Avg/1000 | L6: Place
B7: Meyer, Ryan | C7: 05:17:00 | D7: =+E7-C7 -> 05:44:00 | E7: 11:01:00 | F7: =+G7-E7 -> 05:18:12 | G7: =(+I7/5000)*4800 -> 16:19:12 | H7: =AVERAGE(F7,D7) -> 05:31:06 | I7: 17:00:00 | J7: =(+I7/5000)*1600 -> 05:26:24 | K7: =(+I7/5000)*1000 -> 03:24:00 | L7: 20
B8: Olsen, Eric | C8: 05:32:00 | D8: 06:14:00 | E8: 11:46:00 | F8: 05:32:43.200 | G8: 17:18:43.200 | H8: 05:53:21.600 | I8: 18:02:00 | J8: 05:46:14.400 | K8: 03:36:24 | L8: 50
B9: Lorenz, Cael | C9: 05:40:00 | D9: 06:02:00 | E9: 11:42:00 | F9: 05:37:40.800 | G9: 17:19:40.800 | H9: 05:49:50.400 | I9: 18:03:00 | J9: 05:46:33.600 | K9: 03:36:36 | L9: 52
B10: Adam, Arnold | C10: 05:52:00 | D10: 06:11:00 | E10: 12:03:00 | F10: 05:23:24 | G10: 17:26:24 | H10: 05:47:12 | I10: 18:10:00 | J10: 05:48:48 | K10: 03:38:00 | L10: 56
B11: Roehl, Quinn | C11: 05:52:00 | D11: 06:11:00 | E11: 12:03:00 | F11: 05:32:02.400 | G11: 17:35:02.400 | H11: 05:51:31.200 | I11: 18:19:00 | J11: 05:51:40.800 | K11: 03:39:48 | L11: 59
B12: Williamson, Joe | C12: 05:52:00 | D12: 06:12:00 | E12: 12:04:00 | F12: 05:43:31.200 | G12: 17:47:31.200 | H12: 05:57:45.600 | I12: 18:32:00 | J12: 05:55:50.400 | K12: 03:42:24 | L12: 67
B13: Mutzenberger, Wyatt | C13: 05:52:00 | D13: 06:13:00 | E13: 12:05:00 | F13: 05:55:00 | G13: 18:00:00 | H13: 06:04:00 | I13: 18:45:00 | J13: 06:00:00 | K13: 03:45:00 | L13: 72
C14: Team place | E14: 8th/9 | F14: Team points | H14: 237 | I14: Gap time | J14: =+I11-I7 -> 01:19:00 | K14: # Runner | L14: 130
B15: JV 5k | C15: 1st Mile | D15: 2m split | E15: 2m total | F15: 3m split | G15: 3m total | H15: 2&3 Avg | I15: Final Time | J15: Avg/mile | K15: Avg/1000 | L15: Place
B16: Swanson, Brenden | I16: 18:33:00 | J16: =(+I16/5000)*1600 -> 05:56:09.600 | K16: =(+I16/5000)*1000 -> 03:42:36 | L16: 7
B17: Green, Joseph | I17: 19:14:00 | J17: 06:09:16.800 | K17: 03:50:48 | L17: 18
B18: Vasichek, Tucker | I18: 21:25:00 | J18: 06:51:12 | K18: 04:17:00 | L18: 66
B19: Hoverson, Brandon | I19: 21:39:00 | J19: 06:55:40.800 | K19: 04:19:48 | L19: 70
B20: Darland, Noah | I20: 21:46:00 | J20: 06:57:55.200 | K20: 04:21:12 | L20: 73
B21: Hettich, Daniel | I21: 21:50:00 | J21: 06:59:12 | K21: 04:22:00 | L21: 76
B22: King, Sean | I22: 22:56:00 | J22: 07:20:19.200 | K22: 04:35:12 | L22: 90
B23: Knudson, Jacob | I23: 24:24 | J23: 07:48:28.800 | K23: 04:52:48 | L23: 97
C24: Team place | E24: 7th/9 | F24: Team points | H24: 234 | I24: Gap time | J24: =+I20-I16 -> 03:13:00 | K24: # Runner | L24: 109
B25: Middle School 3K | C25: 1st mile | I25: Final Time | J25: avg/mile | K25: avg/1000 | L25: Place
B26: Elde, Carter | C26: 06:17:00 | I26: 11:33:00 | J26: =(+I26/3000)*1600 -> 06:09:36 | K26: =(+I26/3000)*1000 -> 03:51:00 | L26: 25
B27: McLean, Dylan | C27: 06:17:00 | I27: 11:42:00 | J27: =(+I27/3000)*1600 -> 06:14:24 | K27: =(+I27/3000)*1000 -> 03:54:00 | L27: 29
B28: Polries, Jackson | C28: 06:17:00 | I28: 11:49:00 | J28: 06:18:08 | K28: 03:56:20 | L28: 33
B29: Hoffman, Rylan | C29: 06:17:00 | I29: 11:54:00 | J29: 06:20:48 | K29: 03:58:00 | L29: 37
B30: Stevens, Lane | C30: 06:35:00 | I30: 12:07:00 | J30: 06:27:44 | K30: 04:02:20 | L30: 47
B31: Sum, Emmett | C31: 06:53:00 | I31: 12:33:00 | J31: 06:41:36 | K31: 04:11:00 | L31: 55
B32: Lunski, Edison | C32: 07:05:00 | I32: 12:56:00 | J32: 06:53:52 | K32: 04:18:40 | L32: 63
B33: Westereng, Torrey | C33: 06:54:00 | I33: 12:57:00 | J33: 06:54:24 | K33: 04:19:00 | L33: 65
B34: Haug, Simon | C34: 07:05:00 | I34: 13:00:00 | J34: 06:56:00 | K34: 04:20:00 | L34: 67
B35: Dallum, Levi | C35: 08:07:00 | I35: 14:46:00 | J35: 07:52:32 | K35: 04:55:20 | L35: 108
B36: Kunznia, Zach | C36: 08:29:00 | I36: 15:52:00 | J36: 08:27:44 | K36: 05:17:20 | L36: 120
C37: Team place | E37: 5th/22 | F37: Team points | H37: 171 | I37: Gap time | J37: =+I30-I26 -> 00:34:00 | K37: # Runner | L37: 128

Sheet Milica G
B3: Sept 23rd, 2017 | C3: Milaca
B4: Weather:
B6: 10:30:00 | C6: Lane 34 | D6: 3200m
B7: 8th Girls, 3200 | C7: 1st mile | D7: 2nd mile | G7: Final Time | H7: Avg mile | I7: Avg 100 | J7: Place | K7: 2016 | L7: 2015
B8: Elden, Madison | C8: 07:23:00 | G8: 15:17:00 | H8: =(+G8/3200)*1600 -> 07:38:30 | I8: =(+G8/5000)*1000 -> 03:03:24 | J8: 77
B9: Derenne, Marie | C9: 07:23:00 | G9: 15:18:00 | H9: =(+G9/3200)*1600 -> 07:39:00 | I9: =(+G9/5000)*1000 -> 03:03:36 | J9: 79
B10: Riley, Jillian | G10: 16:04:00 | H10: 08:02:00 | I10: 03:12:48 | J10: 116
B11: Green, Clara | C11: 08:02:00 | G11: 16:48:00 | H11: 08:24:00 | I11: 03:21:36 | J11: 146
B12: Combs, Allison | C12: 08:46:00 | G12: 18:36:00 | H12: 09:18:00 | I12: 03:43:12 | J12: 216 | K12: 16:28:00
B13: Fish, Adara | C13: 09:23:00 | G13: 20:14:00 | H13: 10:07:00 | I13: 04:02:48 | J13: 240 | K13: 16:41:00
B14: Merchant, Anna | C14: 09:58:00 | G14: 22:24:00 | H14: 11:12:00 | I14: 04:28:48 | J14: 250
C15: Points | D15: 11th/18 | E15: Place | F15: 281 | G15: Gap time | I15: # Runners | J15: 220
B16: 11:30:00 | C16: Lane 34
B17: 10th Girls, 5k | C17: 1st Mile | D17: 2m split | E17: 2m total | F17: 3m split | G17: 3m total | H17: 2&3 Avg | I17: Final Time | J17: Avg/mile | K17: Avg/1000 | L17: Place
B18: Thorpe, Tabitha | I18: 33:03 | J18: =(+I18/5000)*1600 -> 10:34:33.600 | K18: =(+I18/5000)*1000 -> 06:36:36 | L18: 191
B19: Spoor, Maggie | I19: 36:32 | J19: =(+I19/5000)*1600 -> 11:41:26.400 | K19: =(+I19/5000)*1000 -> 07:18:24 | L19: 208
B20: 12:30 pm AAA Girls | C20: Lane 23
B21: 5k | C21: 1st Mile | D21: 2m split | E21: 2m total | F21: 3m split | G21: 3m total | H21: 2&3 Avg | I21: Final Time | J21: Avg/mile | K21: Avg/1000 | L21: Place | M21: 2016
B22: Kroeber, Maria | C22: 06:52:00 | I22: 22:46:00 | J22: =(+I22/5000)*1600 -> 07:17:07.200 | K22: =(+I22/5000)*1000 -> 04:33:12 | L22: 58
B23: Hunter, Aislinn | C23: 06:27:00 | I23: 23:27:00 | J23: 07:30:14.400 | K23: 04:41:24 | L23: 78
B24: Grzadzieleski, K | C24: 06:46:00 | I24: 23:50 | J24: 07:37:36 | K24: 04:46:00 | L24: 92
B25: Brunelle, Lillian | C25: 07:36:00 | I25: 26:05 | J25: 08:20:48 | K25: 05:13:00 | L25: 126
B26: Green, Annika | C26: 08:37:00 | I26: 30:05 | J26: 09:37:36 | K26: 06:01:00 | L26: 149
B27: Jackson, Maia | C27: 07:15:00 | I27: DNF | M27: 23:34
C28: Team place | E28: 18th/20 | F28: Team points | H28: 429 | J28: 152

Sheet Milica B
B3: Sept 23rd, 2017 | C3: Milaca
B4: Weather 80, very humid, overcast
B6: 10:00 am Lane 34 | E6: 3200m Race
B7: 8th Grade Boys | C7: 1st mile | I7: Final Time | J7: avg/mile | K7: avg/1000 | L7: Place
B8: Williamson, Joe | C8: 05:35:00 | I8: 11:52:00 | J8: =(+I8/3200)*1600 -> 05:56:00 | K8: =(+I8/5000)*1000 -> 02:22:24 | L8: 11
B9: Mutzenberger, Wyatt | C9: 05:41:00 | I9: 12:13:00 | J9: 06:06:30 | K9: 02:26:36 | L9: 25
B10: Elde, Carter | C10: 06:23:00 | I10: 13:03:00 | J10: 06:31:30 | K10: 02:36:36 | L10: 75
B11: McLean, Dylan | C11: 06:24:00 | I11: 13:10:00 | J11: 06:35:00 | K11: 02:38:00 | L11: 83
B12: Polries, Jackson | C12: 06:27:00 | I12: 13:29:00 | J12: 06:44:30 | K12: 02:41:48 | L12: 106
B13: Stevens, Lane | C13: 06:28:00 | I13: 13:30:00 | J13: 06:45:00 | K13: 02:42:00 | L13: 107
B14: Sum, Emmett | C14: 06:58:00 | I14: 14:12:00 | J14: 07:06:00 | K14: 02:50:24 | L14: 171
B15: Westereng, Torrey | C15: 06:47:00 | I15: 14:15:00 | J15: 07:07:30 | K15: 02:51:00 | L15: 177
B16: Dallum, Levi | C16: 08:23:00 | I16: 17:31:00 | J16: 08:45:30 | K16: 03:30:12 | L16: 333
C17: Team place | E17: 6th/24 | F17: Team points | H17: 182 | I17: Gap time | K17: # Runner | L17: 364
B18: 10:15 am Lane 34 | E18: 3200m Race
B19: 7th Grade Boys | C19: 1st mile | I19: Final Time | J19: avg/mile | K19: avg/1000 | L19: Place
B20: Roehl ,Quinn | C20: 05:36:00 | I20: 12:09:00 | J20: =(+I20/3200)*1600 -> 06:04:30 | K20: =(+I20/5000)*1000 -> 02:25:48 | L20: 11
B21: Hoffman, Rylan | C21: 06:09:00 | I21: 12:56:00 | J21: =(+I21/3200)*1600 -> 06:28:00 | K21: =(+I21/5000)*1000 -> 02:35:12 | L21: 39
B22: Jackson, Finn | C22: 06:34:00 | I22: 13:23:00 | J22: =(+I22/3200)*1600 -> 06:41:30 | K22: =(+I22/5000)*1000 -> 02:40:36 | L22: 68
B23: Lunski, Edison | C23: 06:45:00 | I23: 13:55:00 | J23: =(+I23/3200)*1600 -> 06:57:30 | K23: =(+I23/5000)*1000 -> 02:47:00 | L23: 89
B24: Kunznia, Zach | C24: 08:08:00 | I24: 17:40:00 | J24: =(+I24/3200)*1600 -> 08:50:00 | K24: =(+I24/5000)*1000 -> 03:32:00 | L24: 278
C25: Team place | E25: 10th/24 | F25: Team points | H25: 266 | I25: Gap time | K25: # Runner | L25: 301
B26: 11:00:00 | C26: Lane 34
B27: 10th Grade Boys | C27: 1st Mile | D27: 2m split | E27: 2m total | F27: 3m split | G27: 3m total | H27: 2&3 Avg | I27: Final Time | J27: Avg/mile | K27: Avg/1000 | L27: Place | M27: 2016
B28: Hettich, Daniel | C28: 06:42:00 | I28: 23:03:00 | J28: =(+I28/5000)*1600 -> 07:22:33.600 | K28: =(+I28/5000)*1000 -> 04:36:36 | L28: 254 | M28: 22:05:00
B29: 11:15:00 | C29: Lane 34
B30: 9th Grade Boys | C30: 1st Mile | D30: 2m split | E30: 2m total | F30: 3m split | G30: 3m total | H30: 2&3 Avg | I30: Final Time | J30: Avg/mile | K30: Avg/1000 | L30: Place
B31: Meyer, Ryan | C31: 05:11:00 | I31: 17:31:00 | J31: =(+I31/5000)*1600 -> 05:36:19.200 | K31: =(+I31/5000)*1000 -> 03:30:12 | L31: 1
B32: Arnold, Adam | C32: 05:26:00 | I32: 18:10:00 | J32: 05:48:48 | K32: 03:38:00 | L32: 7
B33: Vasichek, Tucker | C33: 06:51:00 | I33: 23:24:00 | J33: 07:29:16.800 | K33: 04:40:48 | L33: 179
B34: Puckett, Alejandro | C34: 06:41:00 | I34: 22:07:00 | J34: 07:04:38.400 | K34: 04:25:24 | L34: 250
B35: Allan, Collin | C35: 06:52:00 | I35: 23:40:00 | J35: 07:34:24 | K35: 04:44:00 | L35: 269
B36: Knudson, Jacob | C36: 07:30:00 | I36: 24:18 | J36: 07:46:33.600 | K36: 04:51:36 | L36: 298
B37: Hoverson, Brandon | C37: 07:08:00 | I37: 24:20 | J37: 07:47:12 | K37: 04:52:00 | L37: 302
C38: Team place | E38: 17th/38 | F38: Team points | H38: 492 | I38: Gap time | K38: # Runner | L38: 447
B39: 13:30:00 | C39: Lane 23
B40: Class 3A Varsity 5k | C40: 1st Mile | D40: 2m split | E40: 2m total | F40: 3m split | G40: 3m total | H40: 2&3 Avg | I40: Final Time | J40: Avg/mile | K40: Avg/1000 | L40: Place | M40: 2016
B41: Green, Joseph | C41: 06:20:00 | I41: 21:07:00 | J41: =(+I41/5000)*1600 -> 06:45:26.400 | K41: =(+I41/5000)*1000 -> 04:13:24 | L41: 115 | M41: 20:25:00
B42: Swanson, Brenden | C42: 06:19:00 | I42: 21:21:00 | J42: =(+I42/5000)*1600 -> 06:49:55.200 | K42: =(+I42/5000)*1000 -> 04:16:12 | L42: 122 | M42: 20:45:00
B43: Harsell, Ethan | C43: 06:19:00 | I43: 21:54:00 | J43: =(+I43/5000)*1600 -> 07:00:28.800 | K43: =(+I43/5000)*1000 -> 04:22:48 | L43: 126
B44: Darland, Noah | C44: 06:53:00 | I44: 23:16:00 | J44: =(+I44/5000)*1600 -> 07:26:43.200 | K44: =(+I44/5000)*1000 -> 04:39:12 | L44: 136
B45: King, Sean | C45: 07:05:00 | I45: 23:28 | J45: =(+I45/5000)*1600 -> 07:30:33.600 | K45: =(+I45/5000)*1000 -> 04:41:36 | L45: 138 | M45: 22:32:00
C46: Team place | E46: 21st/21 | F46: Team points | H46: 603 | I46: Gap time | K46: # Runner | L46: 141

Sheet GF- G
B3: Sept 30th, 2017 | C3: Grand Forks | I3: True 5K course distance:
B4: Weather:
B6: Varsity 5k | C6: 1st Mile | D6: 2m split | E6: 2m total | F6: 3m split | G6: 3m total | H6: 2&3 Avg | I6: Final Time | J6: Avg 1600 | K6: Avg 1000 | L6: Place | M6: 2016
B7: Torrey, Rachel | C7: 05:51:00 | D7: =+E7-C7 -> 06:09:00 | E7: 12:00:00 | F7: =+G7-E7 -> 05:58:25.602 | G7: =(+I7/5034)*4800 -> 17:58:25.602 | H7: =AVERAGE(F7,D7) -> 06:03:42.801 | I7: 18:51:00 | J7: =(+I7/5034)*1600 -> 05:59:28.534 | K7: =(+I7/5000)*1000 -> 03:46:12 | L7: 1 | M7: 19:20:00 | N7: =(+I7/5034)*5000 -> 18:43:21.669
B8: Weiss, Mikayla | C8: 05:54:00 | D8: 06:27:00 | E8: 12:21:00 | F8: 06:19:22.884 | G8: =(+I8/5034)*4800 -> 18:40:22.884 | H8: 06:23:11.442 | I8: 19:35:00 | J8: =(+I8/5034)*1600 -> 06:13:27.628 | K8: 03:55:00 | L8: 3 | M8: 20:09:00 | N8: 19:27:03.838
B9: Roehl, Alexis | C9: 05:48:00 | D9: 06:23:00 | E9: 12:11:00 | F9: 06:34:08.939 | G9: 18:45:08.939 | H9: 06:28:34.470 | I9: 19:40:00 | J9: 06:15:02.980 | K9: 03:56:00 | L9: 4 | M9: 19:45:00 | N9: 19:32:01.812
B10: Harrison, Lauren | C10: 06:08:00 | D10: 06:37:00 | E10: 12:45:00 | F10: 06:25:53.635 | G10: 19:10:53.635 | H10: 06:31:26.818 | I10: 20:07:00 | J10: 06:23:37.878 | K10: 04:01:24 | L10: 8 | M10: 20:31:00 | N10: 19:58:50.870
B11: Roehl, Sophia | C11: 06:18:00 | D11: 07:00:00 | E11: 13:18:00 | F11: 06:34:50.918 | G11: 19:52:50.918 | H11: 06:47:25.459 | I11: 20:51:00 | J11: 06:37:36.973 | K11: 04:10:12 | L11: 18 | M11: 21:15:00 | N11: 20:42:33.039
B12: Hunter, Aislinn | C12: 06:15:00 | D12: 07:16:00 | E12: 13:31:00 | F12: 06:45:41.192 | G12: 20:16:41.192 | H12: 07:00:50.596 | I12: 21:16:00 | J12: 06:45:33.731 | K12: 04:15:12 | L12: 24 | M12: 20:53:00 | N12: 21:07:22.908
B13: Hynek, Hannah | C13: 06:11:00 | D13: 07:19:00 | E13: 13:30:00 | F13: 06:53:21.669 | G13: 20:23:21.669 | H13: 07:06:10.834 | I13: 21:23:00 | J13: 06:47:47.223 | K13: 04:16:36 | L13: 27 | N13: 21:14:20.072
B14: Kinseth, Silje | C14: 06:18:00 | D14: 07:08:00 | E14: 13:26:00 | F14: 07:18:20.310 | G14: 20:44:20.310 | H14: 07:13:10.155 | I14: 21:45:00 | J14: 06:54:46.770 | K14: 04:21:00 | L14: 31 | M14: 21:20:00 | N14: 21:36:11.156
B15: Jackson, Maia | C15: 06:14:00 | D15: 07:44:00 | E15: 13:58:00 | F15: 07:30:12.014 | G15: 21:28:12.014 | H15: 07:37:06.007 | I15: 22:31:00 | J15: 07:09:24.005 | K15: 04:30:12 | L15: 46 | M15: 23:36:00 | N15: 22:21:52.515
B16: Kroeber, Maria | C16: 07:03:00 | D16: 07:28:00 | E16: 14:31:00 | F16: 07:08:38.546 | G16: 21:39:38.546 | H16: 07:18:19.273 | I16: 22:43:00 | J16: 07:13:12.849 | K16: 04:32:36 | L16: 49 | M16: 25:11 | N16: 22:33:47.652
B17: Berry, Nora | C17: 06:36:00 | D17: 07:37:00 | E17: 14:13:00 | F17: 07:59:03.719 | G17: 22:12:03.719 | H17: 07:48:01.859 | I17: 23:17:00 | J17: 07:24:01.240 | K17: 04:39:24 | L17: 61 | M17: 22:01:00 | N17: 23:07:33.874
B18: Grzadzielewski, K | C18: 06:56:00 | D18: 07:43:00 | E18: 14:39:00 | F18: 07:45:27.461 | G18: 22:24:27.461 | H18: 07:44:13.731 | I18: 23:30:00 | J18: 07:28:09.154 | K18: 04:42:00 | L18: 63 | N18: 23:20:28.605
C19: Points | D19: 34 | E19: Place | H19: 1st/11 | I19: Gap time | J19: 02:00:00 | K19: # Runners | L19: 86
B20: JV 4k | C20: 1st Mile | D20: 2m split | E20: 2m total | F20: 3m split | G20: 3m total | H20: 2&3 Avg | I20: Final Time | J20: Avg 1600 | K20: Avg 1000 | L20: Place
B21: Bertsch, Brenna | C21: 07:24:00 | I21: 19:56:00 | J21: =(+I21/4000)*1600 -> 07:58:24 | K21: =(+I21/4000)*1000 -> 04:59:00 | L21: 23
B22: Brunelle, Lillian | C22: 07:16:00 | I22: 18:50:00 | J22: =(+I22/4000)*1600 -> 07:32:00 | K22: =(+I22/4000)*1000 -> 04:42:30 | L22: 12 | M22: 26:37
B23: Green, Annika | C23: 08:02:00 | I23: 20:31:00 | J23: =(+I23/4000)*1600 -> 08:12:24 | K23: =(+I23/4000)*1000 -> 05:07:45 | L23: 31 | M23: 26:36
B24: Thorpe, Tabitha | C24: 08:47:00 | E24: 19:12:00 | I24: 23:50:00 | J24: =(+I24/4000)*1600 -> 09:32:00 | K24: =(+I24/4000)*1000 -> 05:57:30 | L24: 43
B25: Spoor, Maggie | C25: 09:49:00 | E25: 21:19:00 | I25: 26:52 | J25: =(+I25/4000)*1600 -> 10:44:48 | K25: =(+I25/4000)*1000 -> 06:43:00 | L25: 45
C26: Points | D26: 154 | E26: Place | F26: 5th/10 | I26: Gap time | K26: # Runners
B27: Jr High Girls 3k | C27: 1st mile | I27: Final Time | J27: Avg mile | K27: Avg 1000 | L27: Place
B28: Elden, Madsion | I28: 12:50:00 | J28: =(+I28/3000)*1600 -> 06:50:40 | K28: =(+I28/3000)*1000 -> 04:16:40 | L28: 4
B29: Derenne, Marie | I29: 12:55:00 | J29: 06:53:20 | K29: 04:18:20 | L29: 7
B30: Riley, Jillian | I30: 14:20:00 | J30: 07:38:40 | K30: 04:46:40 | L30: 30
B31: Green, Clara | I31: 14:46:00 | J31: 07:52:32 | K31: 04:55:20 | L31: 35
B32: Mallorie, Swenson | I32: 16:16:00 | J32: 08:40:32 | K32: 05:25:20 | L32: 44
B33: Combs, Allison | I33: 16:18:00 | J33: 08:41:36 | K33: 05:26:00 | L33: 45 | M33: 15:17:00
B34: Fish, Adara | I34: 16:55:00 | J34: 09:01:20 | K34: 05:38:20 | L34: 46 | M34: 16:11:00
B35: Merchant, Anna | I35: 17:43:00 | J35: 09:26:56 | K35: 05:54:20 | L35: 66
C36: Points | D36: 120 | E36: Place | H36: 4th/10 | I36: Gap time | K36: # Runners | L36: 67

Sheet GF- B
B3: Sept 30th, 2017 | C3: Grand Forks
B4: Weather
B6: Varsity 5k | C6: 1st Mile | D6: 2m split | E6: 2m total | F6: 3m split | G6: 3m total | H6: 2&3 Avg | I6: Final Time | J6: Avg/mile | K6: Avg/1000 | L6: Place
B7: Meyer, Ryan | C7: 05:07:00 | D7: =+E7-C7 -> 05:43:00 | E7: 10:50:00 | F7: =+G7-E7 -> 05:31:10.083 | G7: =(+I7/5034)*4800 -> 16:21:10.083 | H7: =AVERAGE(F7,D7) -> 05:37:05.042 | I7: 17:09:00 | J7: =(+I7/5034)*1600 -> 05:27:03.361 | K7: =(+I7/5000)*1000 -> 03:25:48 | L7: 10 | M7: 19:42:00 | N7: =(+I7/5034)*5000 -> 17:02:03.004
B8: Arnold, Adam | C8: 05:28:00 | D8: 05:44:00 | E8: 11:12:00 | F8: 05:24:25.459 | G8: =(+I8/5034)*4800 -> 16:36:25.459 | H8: 05:34:12.729 | I8: 17:25:00 | J8: =(+I8/5034)*1600 -> 05:32:08.486 | K8: 03:29:00 | L8: 16 | N8: =(+I8/5034)*5000 -> 17:17:56.520
B9: Olsen, Eric | C9: 05:34:00 | D9: 05:49:00 | E9: 11:23:00 | F9: 05:46:47.843 | G9: 17:09:47.843 | H9: 05:47:53.921 | I9: 18:00:00 | J9: 05:43:15.948 | K9: 03:36:00 | L9: 36 | M9: 19:12:00 | N9: 17:52:42.336
B10: Lorenz, Cael | C10: 05:33:00 | D10: 06:00:00 | E10: 11:33:00 | F10: 05:48:14.374 | G10: 17:21:14.374 | H10: 05:54:07.187 | I10: 18:12:00 | J10: 05:47:04.791 | K10: 03:38:24 | L10: 41 | N10: 18:04:37.473
B11: Harsell, Ethan | C11: 05:43:00 | D11: 05:57:00 | E11: 11:40:00 | F11: 05:56:29.750 | G11: 17:36:29.750 | H11: 05:56:44.875 | I11: 18:28:00 | J11: 05:52:09.917 | K11: 03:41:36 | L11: 47 | N11: 18:20:30.989
B12: Roehl, Quinn | C12: 05:34:00 | D12: 06:12:00 | E12: 11:46:00 | F12: 06:00:59.070 | G12: 17:46:59.070 | H12: 06:06:29.535 | I12: 18:39:00 | J12: 05:55:39.690 | K12: 03:43:48 | L12: 51 | N12: 18:31:26.532
B13: Swanson, Brenden | C13: 05:39:00 | D13: 06:18:00 | E13: 11:57:00 | F13: 06:13:49.344 | G13: 18:10:49.344 | H13: 06:15:54.672 | I13: 19:04:00 | J13: 06:03:36.448 | K13: 03:48:48 | L13: 60 | M13: 18:51:00 | N13: 18:56:16.400
B14: Green, Joseph | C14: 05:45:00 | D14: 06:37:00 | E14: 12:22:00 | F14: 06:05:01.931 | G14: 18:27:01.931 | H14: 06:21:00.965 | I14: 19:21:00 | J14: 06:09:00.644 | K14: 03:52:12 | L14: 70 | M14: 19:15:00 | N14: 19:13:09.511
B15: Williamson, Joe | C15: 05:46:00 | D15: 06:20:00 | E15: 12:06:00 | F15: 06:25:47.986 | G15: 18:31:47.986 | H15: 06:22:53.993 | I15: 19:26:00 | J15: 06:10:35.995 | K15: 03:53:12 | L15: 71 | N15: 19:18:07.485
C16: Team place | E16: 5th/11 | F16: Team points | H16: 145 | I16: Gap time | J16: 01:19:00 | K16: # Runner | L16: 99
B17: JV 5k | C17: 1st Mile | D17: 2m split | E17: 2m total | F17: 3m split | G17: 3m total | H17: 2&3 Avg | I17: Final Time | J17: Avg/mile | K17: Avg/1000 | L17: Place
B18: Van de Bogert, Dylan | C18: 05:51:00 | D18: =+E18-C18 -> 06:21:00 | E18: 12:12:00 | F18: =+G18-E18 -> 06:15:59.142 | G18: =(+I18/5034)*4800 -> 18:27:59.142 | H18: =AVERAGE(F18,D18) -> 06:18:29.571 | I18: 19:22:00 | J18: =(+I18/5034)*1600 -> 06:09:19.714 | K18: =(+I18/5000)*1000 -> 03:52:24 | L18: 9 | N18: =(+I18/5034)*5000 -> 19:14:09.106
B19: Hoverson, Brandon | C19: 06:31:00 | D19: 06:36:00 | E19: 13:07:00 | F19: 06:30:35.542 | G19: 19:37:35.542 | H19: 06:33:17.771 | I19: 20:35:00 | J19: 06:32:31.847 | K19: 04:07:00 | L19: 35 | N19: 20:26:39.523
B20: Darland, Noah | C20: 06:15:00 | D20: 06:57:00 | E20: 13:12:00 | F20: 06:47:31.395 | G20: 19:59:31.395 | H20: 06:52:15.697 | I20: 20:58:00 | J20: 06:39:50.465 | K20: 04:11:36 | L20: 41 | N20: 20:49:30.203
B21: Puckett, Alejandro | C21: 06:33:00 | D21: 06:46:00 | E21: 13:19:00 | F21: 06:58:38.403 | G21: 20:17:38.403 | H21: 06:52:19.201 | I21: 21:17:00 | J21: 06:45:52.801 | K21: 04:15:24 | L21: 43 | N21: 21:08:22.503
B22: Allan, Collin | C22: 06:24:00 | D22: 07:17:00 | E22: 13:41:00 | F22: 06:49:02.145 | G22: 20:30:02.145 | H22: 07:03:01.073 | I22: 21:30:00 | J22: 06:50:00.715 | K22: 04:18:00 | L22: 46 | N22: 21:21:17.235
B23: Hettich, Daniel | C23: 06:53:00 | D23: 07:15:00 | E23: 14:08:00 | F23: 07:04:56.639 | G23: 21:12:56.639 | H23: 07:09:58.319 | I23: 22:15:00 | J23: 07:04:18.880 | K23: 04:27:00 | L23: 54 | M23: 22:18:00 | N23: 22:05:58.999
B24: King, Sean | C24: 07:10:00 | D24: 07:45:00 | E24: 14:55:00 | F24: 07:38:59.571 | G24: 22:33:59.571 | H24: 07:41:59.785 | I24: 23:40:00 | J24: 07:31:19.857 | K24: 04:44:00 | L24: 55 | N24: 23:30:24.553
B25: Kundson, Jacob | C25: 07:23:00 | D25: 08:06:00 | E25: 15:29:00 | F25: 07:57:26.174 | G25: 23:26:26.174 | H25: 08:01:43.087 | I25: 24:35 | J25: 07:48:48.725 | K25: 04:55:00 | L25: 75 | N25: 1.017387322
C26: Team place | E26: 7th/10 | F26: Team points | H26: 174 | I26: Gap time | K26: # Runner | L26: 82
B27: Middle School 3K | C27: 1st mile | I27: Final Time | J27: avg/mile | K27: avg/1000 | L27: Place
B28: Mutzenberger, Wyatt | I28: 11:25:00 | J28: =(+I28/3000)*1600 -> 06:05:20 | K28: =(+I28/3000)*1000 -> 03:48:20 | L28: 9
B29: Elde, Carter | I29: 11:29:00 | J29: 06:07:28 | K29: 03:49:40 | L29: 12
B30: McLean, Dylan | I30: 11:33:00 | J30: 06:09:36 | K30: 03:51:00 | L30: 13
B31: Hoffman, Rylan | I31: 11:54:00 | J31: 06:20:48 | K31: 03:58:00 | L31: 19
B32: Polries, Jackson | I32: 12:00:00 | J32: 06:24:00 | K32: 04:00:00 | L32: 23 | M32: 11:48:00
B33: Stevens, Lane | I33: 12:03:00 | J33: 06:25:36 | K33: 04:01:00 | L33: 25
B34: Sum, Emmett | I34: 12:07:00 | J34: 06:27:44 | K34: 04:02:20 | L34: 27 | M34: 12:53:00
B35: Jackson, Finn | I35: 12:15:00 | J35: 06:32:00 | K35: 04:05:00 | L35: 33
B36: Westerng, Torrey | I36: 12:40:00 | J36: 06:45:20 | K36: 04:13:20 | L36: 40 | M36: 13:51:00
B37: Lunski, Edison | I37: 12:45:00 | J37: 06:48:00 | K37: 04:15:00 | L37: 43
B38: Dallum, Levi | I38: 14:45:00 | J38: 07:52:00 | K38: 04:55:00 | L38: 70
B39: Kunznia, Zach | I39: 16:51:00 | J39: 08:59:12 | K39: 05:37:00 | L39: 74
C40: Team place | E40: 2nd/9 | F40: Team points | H40: 76 | I40: Gap time | K40: # Runner | L40: 76

Sheet minot- B
B3: Oct 7th, 2017 | C3: Minot
B4: Weather
B6: Varsity 5k | C6: 1st Mile | D6: 2m split | E6: 2m total | F6: 3m split | G6: 3m total | H6: 2&3 Avg | I6: Final Time | J6: Avg/mile | K6: Avg/1000 | L6: Place
B7: Meyer, Ryan | C7: 05:20:00 | F7: =+G7-E7 -> 16:48:57.600 | G7: =(+I7/5000)*4800 -> 16:48:57.600 | H7: =AVERAGE(F7,D7) -> 16:48:57.600 | I7: 17:31:00 | J7: =(+I7/5000)*1600 -> 05:36:19.200 | K7: =(+I7/5000)*1000 -> 03:30:12 | L7: 15
B8: Olsen, Eric | C8: 05:41:00 | F8: 17:16:48 | G8: 17:16:48 | H8: 17:16:48 | I8: 18:00:00 | J8: 05:45:36 | K8: 03:36:00 | L8: 27
B9: Lorenz, Cael | C9: 05:43:00 | F9: 17:34:04.800 | G9: 17:34:04.800 | H9: 17:34:04.800 | I9: 18:18:00 | J9: 05:51:21.600 | K9: 03:39:36 | L9: 36
B10: Williamson, Joe | C10: 05:52:00 | F10: 17:48:28.800 | G10: 17:48:28.800 | H10: 17:48:28.800 | I10: 18:33:00 | J10: 05:56:09.600 | K10: 03:42:36 | L10: 42
B11: Roehl, Quinn | C11: 05:52:00 | F11: 17:59:02.400 | G11: 17:59:02.400 | H11: 17:59:02.400 | I11: 18:44:00 | J11: 05:59:40.800 | K11: 03:44:48 | L11: 44
B12: Harsell, Ethan | C12: 05:59:00 | F12: 18:06:43.200 | G12: 18:06:43.200 | H12: 18:06:43.200 | I12: 18:52:00 | J12: 06:02:14.400 | K12: 03:46:24 | L12: 45
B13: Van de Bogert, Dylan | C13: 05:51:00 | F13: 18:27:50.400 | G13: 18:27:50.400 | H13: 18:27:50.400 | I13: 19:14:00 | J13: 06:09:16.800 | K13: 03:50:48 | L13: 55
B14: Swanson, Brenden | C14: 06:11:00 | D14: =+E14-C14 -> 05:58:00 | E14: 12:09:00 | F14: 06:33:14.400 | G14: 18:42:14.400 | H14: 06:15:37.200 | I14: 19:29:00 | J14: 06:14:04.800 | K14: 03:53:48 | L14: 62
B15: Hoverson, Brandon | C15: 06:12:00 | F15: 19:00:28.800 | G15: 19:00:28.800 | H15: 19:00:28.800 | I15: 19:48:00 | J15: 06:20:09.600 | K15: 03:57:36 | L15: 74
B16: Elde, Carter | C16: 06:29:00 | F16: 19:35:02.400 | G16: 19:35:02.400 | H16: 19:35:02.400 | I16: 20:24:00 | J16: 06:31:40.800 | K16: 04:04:48 | L16: 91
B17: McLean, Dylan | C17: 06:29:00 | F17: 19:37:55.200 | G17: 19:37:55.200 | H17: 19:37:55.200 | I17: 20:27:00 | J17: 06:32:38.400 | K17: 04:05:24 | L17: 92
B18: Mutzenberger, Wyatt | C18: 05:59:00 | F18: 19:48:28.800 | G18: 19:48:28.800 | H18: 19:48:28.800 | I18: 20:38:00 | J18: 06:36:09.600 | K18: 04:07:36 | L18: 95
B19: Puckett, Alejandro | C19: 06:30:00 | F19: 19:38:52.800 | G19: 19:38:52.800 | H19: 19:38:52.800 | I19: 20:28:00 | J19: 06:32:57.600 | K19: 04:05:36 | L19: 95
B20: Hoffman, Rylan | C20: 06:29:00 | D20: =+E20-C20 -> 06:15:00 | E20: 12:44:00 | F20: 07:33:16.800 | G20: 20:17:16.800 | H20: 06:54:08.400 | I20: 21:08:00 | J20: 06:45:45.600 | K20: 04:13:36 | L20: 102
B21: Polries, Jackson | C21: 06:42:00 | D21: 06:43:00 | E21: 13:25:00 | F21: 07:11:28.800 | G21: 20:36:28.800 | H21: 06:57:14.400 | I21: 21:28:00 | J21: 06:52:09.600 | K21: 04:17:36 | L21: 107
B22: Stevens, Lane | C22: 06:45:00 | D22: 06:55:00 | E22: 13:40:00 | F22: 07:16:38.400 | G22: 20:56:38.400 | H22: 07:05:49.200 | I22: 21:49:00 | J22: 06:58:52.800 | K22: 04:21:48 | L22: 114
B23: Westerng, Torrey | C23: 07:07:00 | D23: 07:13:00 | E23: 14:20:00 | F23: 07:42:52.800 | G23: 22:02:52.800 | H23: 07:27:56.400 | I23: 22:58:00 | J23: 07:20:57.600 | K23: 04:35:36 | L23: 122
B24: King, Sean | C24: 07:10:00 | D24: 07:26:00 | E24: 14:36:00 | F24: 07:46:04.800 | G24: 22:22:04.800 | H24: 07:36:02.400 | I24: 23:18:00 | J24: 07:27:21.600 | K24: 04:39:36 | L24: 124
B25: Kundson, Jacob | C25: 07:29:00 | D25: 07:46:00 | E25: 15:15:00 | F25: 07:48:21.600 | G25: 23:03:21.600 | H25: 07:47:10.800 | I25: 24:01 | J25: 07:41:07.200 | K25: 04:48:12 | L25: 128
C26: Team place | E26: 5th/11 | F26: Team points | H26: 164 | I26: Gap time | K26: # Runner | L26: 141
B27: Middle School 3K | C27: 1st mile | I27: Final Time | J27: avg/mile | K27: avg/1000 | L27: Place
B28: Lunski, Edison | C28: 07:13:00 | I28: 13:09:00 | J28: =(+I28/3000)*1600 -> 07:00:48 | K28: =(+I28/3000)*1000 -> 04:23:00 | L28: 62
B29: Dallum, Levi | C29: 07:54:00 | I29: 15:09:00 | J29: =(+I29/3000)*1600 -> 08:04:48 | K29: =(+I29/3000)*1000 -> 05:03:00 | L29: 92
C30: Team place | F30: Team points | I30: Gap time | K30: # Runner | L30: 99

Sheet Minot- G
B3: Oct 7th, 2017 | C3: Minot | I3: True 5K course distance:
B4: Weather:
B6: Varsity 5k | C6: 1st Mile | D6: 2m split | E6: 2m total | F6: 3m split | G6: 3m total | H6: 2&3 Avg | I6: Final Time | J6: Avg 1600 | K6: Avg 1000 | L6: Place
B7: Torrey, Rachel | C7: 05:46:00 | D7: =+E7-C7 -> 06:09:00 | E7: 11:55:00 | F7: =+G7-E7 -> 06:20:21.600 | G7: =(+I7/5000)*4800 -> 18:15:21.600 | H7: =AVERAGE(F7,D7) -> 06:14:40.800 | I7: 19:01:00 | J7: =(+I7/5000)*1600 -> 06:05:07.200 | K7: =(+I7/5000)*1000 -> 03:48:12 | L7: 3
B8: Roehl, Alexis | C8: 05:55:00 | D8: 06:12:00 | E8: 12:07:00 | F8: 06:23:43.200 | G8: 18:30:43.200 | H8: 06:17:51.600 | I8: 19:17:00 | J8: 06:10:14.400 | K8: 03:51:24 | L8: 4
B9: Weiss, Mikayla | C9: 06:06:00 | D9: 06:13:00 | E9: 12:19:00 | F9: 06:27:04.800 | G9: 18:46:04.800 | H9: 06:20:02.400 | I9: 19:33:00 | J9: 06:15:21.600 | K9: 03:54:36 | L9: 7
B10: Harrison, Lauren | C10: 06:17:00 | D10: 06:39:00 | E10: 12:56:00 | F10: 06:44:48 | G10: 19:40:48 | H10: 06:41:54 | I10: 20:30:00 | J10: 06:33:36 | K10: 04:06:00 | L10: 19
B11: Roehl, Sophia | C11: 06:27:00 | D11: 06:56:00 | E11: 13:23:00 | F11: 06:43:43.200 | G11: 20:06:43.200 | H11: 06:49:51.600 | I11: 20:57:00 | J11: 06:42:14.400 | K11: 04:11:24 | L11: 25
B12: Hynek, Hannah | C12: 06:36:00 | D12: 07:01:00 | E12: 13:37:00 | F12: 07:13:52.800 | G12: 20:50:52.800 | H12: 07:07:26.400 | I12: 21:43:00 | J12: 06:56:57.600 | K12: 04:20:36 | L12: 35
B13: Kinseth, Silje | C13: 06:33:00 | D13: 06:57:00 | E13: 13:30:00 | F13: 07:26:38.400 | G13: 20:56:38.400 | H13: 07:11:49.200 | I13: 21:49:00 | J13: 06:58:52.800 | K13: 04:21:48 | L13: 37
B14: Jackson, Maia | C14: 06:49:00 | D14: 06:47:00 | E14: 13:36:00 | F14: 07:21:36 | G14: 20:57:36 | H14: 07:04:18 | I14: 21:50:00 | J14: 06:59:12 | K14: 04:22:00 | L14: 39
B15: Berry, Nora | C15: 06:51:00 | D15: 07:21:00 | E15: 14:12:00 | F15: 07:17:16.800 | G15: 21:29:16.800 | H15: 07:19:08.400 | I15: 22:23:00 | J15: 07:09:45.600 | K15: 04:28:36 | L15: 44
B16: Kroeber, Maria | C16: 07:05:00 | D16: 07:26:00 | E16: 14:31:00 | F16: 07:24:12 | G16: 21:55:12 | H16: 07:25:06 | I16: 22:50:00 | J16: 07:18:24 | K16: 04:34:00 | L16: 48
B17: Elden, Madsion | C17: 07:11:00 | D17: 07:24:00 | E17: 14:35:00 | F17: 07:30:45.600 | G17: 22:05:45.600 | H17: 07:27:22.800 | I17: 23:01:00 | J17: 07:21:55.200 | K17: 04:36:12 | L17: 52
B18: Derenne, Marie | C18: 07:10:00 | D18: 07:33:00 | E18: 14:43:00 | F18: 07:32:21.600 | G18: 22:15:21.600 | H18: 07:32:40.800 | I18: 23:11:00 | J18: 07:25:07.200 | K18: 04:38:12 | L18: 57
B19: Grzadzielewski, K | C19: 07:11:00 | D19: 07:19:00 | E19: 14:30:00 | F19: 08:05:31.200 | G19: 22:35:31.200 | H19: 07:42:15.600 | I19: 23:32:00 | J19: 07:31:50.400 | K19: 04:42:24 | L19: 64
B20: Green, Annika | C20: 07:59:00 | D20: 08:11:00 | E20: 16:10:00 | F20: 08:14:57.600 | G20: 1.017333333 | H20: 08:12:58.800 | I20: 25:26 | J20: 08:08:19.200 | K20: 05:05:12 | L20: 84
B21: Brunelle, Lillian | C21: 07:51:00 | D21: 08:26:00 | E21: 16:17:00 | F21: 08:47:19.200 | G21: 1.044666667 | H21: 08:36:39.600 | I21: 26:07 | J21: 08:21:26.400 | K21: 05:13:24 | L21: 87
B22: Spoor, Maggie | C22: 11:00:00 | D22: 11:38:00 | E22: 22:38:00 | F22: 12:47:26.400 | G22: 1.476 | H22: 12:12:43.200 | I22: 36:54 | J22: 11:48:28.800 | K22: 07:22:48 | L22: 102
C23: Points | D23: 58 | E23: Place | F23: 2nd/10 | I23: Gap time | J23: 01:56:00 | K23: # Runners | L23: 102
B24: Jr High Girls 3k | C24: 1st mile | I24: Final Time | J24: Avg mile | K24: Avg 1000 | L24: Place
B25: Riley, Jillian | C25: 07:35:00 | I25: 14:18:00 | L25: 43
B26: Green, Clara | C26: 08:06:00 | I26: 15:07:00 | L26: 51
B27: Mallorie, Swenson | C27: 09:01:00 | I27: 16:05:00 | L27: 62
B28: Combs, Allison | C28: 09:09:00 | I28: 17:03:00 | L28: 67
B29: Fish, Adara | C29: 09:36:00 | I29: 17:49:00 | L29: 69
B30: Rydell, Lauryn | C30: 09:26:00 | I30: 17:51:00 | L30: 70
B31: Merchant, Anna | C31: 09:49:00 | I31: 19:23:00 | L31: 73
C32: Points | D32: 292 | E32: Place | H32: 19th/13 | I32: Gap time | K32: # Runners | L32: 76

Sheet EDC - Boys
B3: Oct 14th, 2017 | C3: EDC - | I3: True Distance
B4: Weather | C4: Rose Creek | I4: 4922m
B5: 50, rain, light wind
B6: Varsity 5k | C6: 1st Mile | D6: 2m split | E6: 2m total | F6: 3m split | G6: 3m total | H6: 2&3 Avg | I6: Final Time | J6: Avg/mile | K6: Avg/1000 | L6: Place | M6: Corrected
B7: Meyer, Ryan | C7: 05:08:00 | D7: =+E7-C7 -> 05:18:00 | E7: 10:26:00 | F7: =+G7-E7 -> 05:41:24.697 | G7: =(+I7/4922)*4800 -> 16:07:24.697 | H7: =AVERAGE(F7,D7) -> 05:29:42.349 | I7: 16:32:00 | J7: =(+I7/4922)*1600 -> 05:22:28.232 | K7: =(+I7/5000)*1000 -> 03:18:24 | L7: 6 | M7: =(+I7/4922)*5000 -> 16:47:43.226
B8: Arnold, Adam | C8: 05:22:00 | D8: 05:28:00 | E8: 10:50:00 | F8: 05:35:56.440 | G8: =(+I8/4922)*4800 -> 16:25:56.440 | H8: 05:31:58.220 | I8: 16:51:00 | J8: =(+I8/4922)*1600 -> 05:28:38.813 | K8: 03:22:12 | L8: 12 | M8: 17:07:01.292
B9: Olsen, Eric | C9: 05:29:00 | D9: 05:37:00 | E9: 11:06:00 | F9: 05:48:13.312 | G9: 16:54:13.312 | H9: 05:42:36.656 | I9: 17:20:00 | J9: 05:38:04.437 | K9: 03:28:00 | L9: 26 | M9: 17:36:28.866
B10: Williamson, Joe | C10: 05:29:00 | D10: 05:46:00 | E10: 11:15:00 | F10: 05:56:46.542 | G10: 17:11:46.542 | H10: 05:51:23.271 | I10: 17:38:00 | J10: 05:43:55.514 | K10: 03:31:36 | L10: 37 | M10: 17:54:45.981
B11: Lorenz, Cael | C11: 05:26:00 | D11: 05:45:00 | E11: 11:11:00 | F11: 06:03:42.080 | G11: 17:14:42.080 | H11: 05:54:21.040 | I11: 17:41:00 | J11: 05:44:54.027 | K11: 03:32:12 | L11: 42 | M11: 17:57:48.834
B12: Roehl, Quinn | C12: 05:35:00 | D12: 05:47:00 | E12: 11:22:00 | F12: 06:05:22.747 | G12: 17:27:22.747 | H12: 05:56:11.373 | I12: 17:54:00 | J12: 05:49:07.582 | K12: 03:34:48 | L12: 46 | M12: 18:11:01.195
B13: Van de Bogert, Dylan | C13: 05:44:00 | D13: 06:06:00 | E13: 11:50:00 | F13: 06:12:29.208 | G13: 18:02:29.208 | H13: 06:09:14.604 | I13: 18:30:00 | J13: 06:00:49.736 | K13: 03:42:00 | L13: 68 | M13: 18:47:35.425
B14: Swanson, Brenden | C14: 05:44:00 | D14: 06:06:00 | E14: 11:50:00 | F14: 06:26:08.387 | G14: 18:16:08.387 | H14: 06:16:04.193 | I14: 18:44:00 | J14: 06:05:22.796 | K14: 03:44:48 | L14: 77 | M14: 19:01:48.736
B15: Hoverson, Brandon | C15: 06:01:00 | D15: 06:09:00 | E15: 12:10:00 | F15: 06:25:38.643 | G15: 18:35:38.643 | H15: 06:17:19.321 | I15: 19:04:00 | J15: 06:11:52.881 | K15: 03:48:48 | L15: 90 | M15: 19:22:07.753
B16: Elde, Carter | C16: 06:04:00 | D16: 06:08:00 | E16: 12:12:00 | F16: 06:33:23.771 | G16: 18:45:23.771 | H16: 06:20:41.885 | I16: 19:14:00 | J16: 06:15:07.924 | K16: 03:50:48 | L16: 97 | M16: 19:32:17.261
B17: Vasichek, Tucker | C17: 06:04:00 | D17: 06:25:00 | E17: 12:29:00 | F17: 06:37:51.052 | G17: 19:06:51.052 | H17: 06:31:25.526 | I17: 19:36:00 | J17: 06:22:17.017 | K17: 03:55:12 | L17: 107 | M17: 19:54:38.180
B18: Puckett, Alejandro | C18: 06:04:00 | D18: 06:44:00 | E18: 12:48:00 | F18: 06:23:43.616 | G18: 19:11:43.616 | H18: 06:33:51.808 | I18: 19:41:00 | J18: 06:23:54.539 | K18: 03:56:12 | L18: 110 | M18: 19:59:42.934
B19: McLean, Dylan | C19: 06:04:00 | D19: 06:28:00 | E19: 12:32:00 | F19: 06:48:30.232 | G19: 19:20:30.232 | H19: 06:38:15.116 | I19: 19:50:00 | J19: 06:26:50.077 | K19: 03:58:00 | L19: 115 | M19: 20:08:51.491
B20: Allan, Collin | C20: 06:01:00 | D20: 06:09:00 | E20: 12:10:00 | F20: 07:34:53.052 | G20: 19:44:53.052 | H20: 06:51:56.526 | I20: 20:15:00 | J20: 06:34:57.684 | K20: 04:03:00 | L20: 122 | M20: 20:34:15.262
B21: Darland, Noah | C21: 06:28:00 | D21: 06:39:00 | E21: 13:07:00 | F21: 06:56:24.795 | G21: 20:03:24.795 | H21: 06:47:42.397 | I21: 20:34:00 | J21: 06:41:08.265 | K21: 04:06:48 | L21: 132 | M21: 20:53:33.328
B22: Hettich, Daniel | C22: 06:41:00 | D22: 07:12:00 | E22: 13:53:00 | F22: 07:12:49.614 | G22: 21:05:49.614 | H22: 07:12:24.807 | I22: 21:38:00 | J22: 07:01:56.538 | K22: 04:19:36 | L22: 146 | M22: 21:58:34.181
B23: King, Sean | C23: 06:54:00 | D23: 07:16:00 | E23: 14:10:00 | F23: 07:37:45.664 | G23: 21:47:45.664 | H23: 07:26:52.832 | I23: 22:21:00 | J23: 07:15:55.221 | K23: 04:28:12 | L23: 157 | M23: 22:42:15.067
B24: Kundson, Jacob | C24: 06:59:00 | D24: 07:27:00 | E24: 14:26:00 | F24: 07:47:06.997 | G24: 22:13:06.997 | H24: 07:37:03.499 | I24: 22:47:00 | J24: 07:24:22.332 | K24: 04:33:24 | L24: 159 | M24: 23:08:39.789
B25: Hoffman, Rylan | C25: 06:31:00 | D25: 07:51:00 | E25: 14:22:00 | F25: 07:56:58.074 | G25: 22:18:58.074 | H25: 07:53:59.037 | I25: 22:53:00 | J25: 07:26:19.358 | K25: 04:34:36 | L25: 160 | M25: 23:14:45.494
C26: Team place | E26: 4th/10 | F26: Team points | H26: 123 | I26: Gap time | J26: 01:09:00 | K26: # Runner | L26: 167
B27: Middle School 3K | C27: 1st mile | I27: Final Time | J27: avg/mile | K27: avg/1000 | L27: Place
B28: Polries, Jackson | C28: 06:01:00 | I28: 11:43:00 | J28: =(+I28/3000)*1600 -> 06:14:56 | L28: 27
B29: Jackson, Finn | C29: 06:14:00 | I29: 11:44:00 | J29: 06:15:28 | L29: 28
B30: Stevens, Lane | C30: 06:02:00 | I30: 11:49:00 | J30: 06:18:08 | L30: 31
B31: Sum, Emmett | C31: 06:27:00 | I31: 12:17:00 | J31: 06:33:04 | L31: 44
B32: Westerng, Torrey | C32: 06:27:00 | I32: 12:25:00 | J32: 06:37:20 | L32: 48
B33: Lunski, Edison | C33: 06:34:00 | I33: 12:36:00 | J33: 06:43:12 | L33: 52
B34: Dallum, Levi | C34: 07:34:00 | I34: 14:26:00 | J34: 07:41:52 | L34: 83
B35: Kunznia, Zach | C35: 06:34:00 | I35: 15:03:00 | J35: 08:01:36 | L35: 88
C36: Team place | E36: 6th/10 | F36: Team points | H36: 178 | I36: Gap time | K36: # Runner

Sheet EDC - Girls
B3: Oct 14th, 2017 | C3: EDC - Rose Creek | I3: True 5K course distance:
B4: Weather: | J4: 4922m
B5: 50, rain, light wind
B6: Varsity 5k | C6: 1st Mile | D6: 2m split | E6: 2m total | F6: 3m split | G6: 3m total | H6: 2&3 Avg | I6: Final Time | J6: Avg 1600 | K6: Avg 1000 | L6: Place | M6: Corrected
B7: Torrey, Rachel | C7: 05:30:00 | D7: =+E7-C7 -> 05:54:00 | E7: 11:24:00 | F7: =+G7-E7 -> 05:51:50.400 | G7: =(+I7/5000)*4800 -> 17:15:50.400 | H7: =AVERAGE(F7,D7) -> 05:52:55.200 | I7: 17:59:00 | J7: =(+I7/5000)*1600 -> 05:45:16.800 | K7: =(+I7/5000)*1000 -> 03:35:48 | L7: 1 | M7: =(+I7/4922)*5000 -> 18:16:05.949 | O7: 5000
B8: Roehl, Alexis | C8: 05:30:00 | D8: =+E8-C8 -> 05:59:00 | E8: 11:29:00 | F8: 05:57:24 | G8: 17:26:24 | H8: 05:58:12 | I8: 18:10:00 | J8: 05:48:48 | K8: 03:38:00 | L8: 2 | M8: =(+I8/4922)*5000 -> 18:27:16.408 | O8: 78
B9: Weiss, Mikayla | C9: 05:31:00 | D9: =+E9-C9 -> 06:01:00 | E9: 11:32:00 | F9: 06:04:00 | G9: 17:36:00 | H9: 06:02:30 | I9: 18:20:00 | J9: 05:52:00 | K9: 03:40:00 | L9: 3 | M9: 18:37:25.916 | O9: =+O7-O8 -> 4922
B10: Harrison, Lauren | C10: 05:50:00 | D10: 06:13:00 | E10: 12:03:00 | F10: 06:17:09.600 | G10: 18:20:09.600 | H10: 06:15:04.800 | I10: 19:06:00 | J10: 06:06:43.200 | K10: 03:49:12 | L10: 10 | M10: 19:24:09.655
B11: Hynek, Hannah | C11: 06:02:00 | D11: 06:31:00 | E11: 12:33:00 | F11: 06:32:16.800 | G11: 19:05:16.800 | H11: 06:31:38.400 | I11: 19:53:00 | J11: 06:21:45.600 | K11: 03:58:36 | L11: 26 | M11: 20:11:54.344
B12: Kinseth, Silje | C12: 06:02:00 | D12: 06:31:00 | E12: 12:33:00 | F12: 06:32:16.800 | G12: 19:05:16.800 | H12: 06:31:38.400 | I12: 19:53:00 | J12: 06:21:45.600 | K12: 03:58:36 | L12: 25 | M12: 20:11:54.344
B13: Roehl, Sophia | C13: 06:02:00 | D13: 06:43:00 | E13: 12:45:00 | F13: 06:35:38.400 | G13: 19:20:38.400 | H13: 06:39:19.200 | I13: 20:09:00 | J13: 06:26:52.800 | K13: 04:01:48 | L13: 31 | M13: 20:28:09.557
B14: Jackson, Maia | C14: 06:17:00 | D14: 06:56:00 | E14: 13:13:00 | F14: 07:02:21.600 | G14: 20:15:21.600 | H14: 06:59:10.800 | I14: 21:06:00 | J14: 06:45:07.200 | K14: 04:13:12 | L14: 54 | M14: 21:26:03.755
B15: Berry, Nora | C15: 06:33:00 | D15: 06:57:00 | E15: 13:30:00 | F15: 06:58:48 | G15: 20:28:48 | H15: 06:57:54 | I15: 21:20:00 | J15: 06:49:36 | K15: 04:16:00 | L15: 56 | M15: 21:40:17.066
B16: Hunter, Aslinn | C16: 06:23:00 | D16: 07:07:00 | E16: 13:30:00 | F16: 06:59:45.600 | G16: 20:29:45.600 | H16: 07:03:22.800 | I16: 21:21:00 | J16: 06:49:55.200 | K16: 04:16:12 | L16: 57 | M16: 21:41:18.017
B17: Kroeber, Maria | C17: 06:46:00 | D17: 07:08:00 | E17: 13:54:00 | F17: 06:56:52.800 | G17: 20:50:52.800 | H17: 07:02:26.400 | I17: 21:43:00 | J17: 06:56:57.600 | K17: 04:20:36 | L17: 69 | M17: 22:03:38.935
B18: Grzadzielewski, K | C18: 06:49:00 | D18: 07:11:00 | E18: 14:00:00 | F18: 07:07:12 | G18: 21:07:12 | H18: 07:09:06 | I18: 22:00:00 | J18: 07:02:24 | K18: 04:24:00 | L18: 80 | M18: 22:20:55.100
B19: Brunelle, Lillian | C19: 07:17:00 | D19: 07:51:00 | E19: 15:08:00 | F19: 07:46:43.200 | G19: 22:54:43.200 | H19: 07:48:51.600 | I19: 23:52:00 | J19: 07:38:14.400 | K19: 04:46:24 | L19: 122 | M19: 24:14
B20: Bertsch, Brenna | C20: 06:55:00 | D20: 08:01:00 | E20: 14:56:00 | F20: 08:09:16.800 | G20: 23:05:16.800 | H20: 08:05:08.400 | I20: 24:03 | J20: 07:41:45.600 | K20: 04:48:36 | L20: 126 | M20: 24:25
B21: Moore, Stephanie | C21: 07:49:00 | D21: 08:01:00 | E21: 15:50:00 | F21: 08:02:19.200 | G21: 23:52:19.200 | H21: 08:01:39.600 | I21: 24:52 | J21: 07:57:26.400 | K21: 04:58:24 | L21: 138 | M21: 25:15
B22: Green, Annika | C22: 07:49:00 | D22: 08:14:00 | E22: 16:03:00 | F22: 08:03:43.200 | G22: 1.004666667 | H22: 08:08:51.600 | I22: 25:07 | J22: 08:02:14.400 | K22: 05:01:24 | L22: 142 | M22: 25:30
B23: Thorpe, Tabitha | C23: 08:11:00 | D23: 09:18:00 | E23: 17:29:00 | F23: 09:15:09.600 | G23: 1.114 | H23: 09:16:34.800 | I23: 27:51 | J23: 08:54:43.200 | K23: 05:34:12 | L23: 160 | M23: 28:17
B24: Spoor, Maggie | C24: 09:11:00 | D24: 10:10:00 | E24: 19:21:00 | F24: 10:41:52.800 | G24: 1.252 | H24: 10:25:56.400 | I24: 31:18 | J24: 10:00:57.600 | K24: 06:15:36 | L24: 166 | M24: 31:47
C25: Points | D25: 41 | E25: Place | F25: 2nd/11 | I25: Gap time | J25: 01:54:00 | K25: # Runners | L25: 166
B26: Jr High Girls 3k | C26: 1st mile | I26: Final Time | J26: Avg mile | K26: Avg 1000 | L26: Place
B27: Elden, Madsion | C27: 06:42:00 | I27: 12:47:00 | J27: =(+I27/3000)*1600 -> 06:49:04 | L27: 11
B28: Derenne, Marie | C28: 06:43:00 | I28: 13:08:00 | J28: =(+I28/3000)*1600 -> 07:00:16 | L28: 16
B29: Riley, Jillian | C29: 07:00:00 | I29: 13:33:00 | J29: =(+I29/3000)*1600 -> 07:13:36 | L29: 27
B30: Green, Clara | C30: 07:38:00 | I30: 14:27:00 | J30: 07:42:24 | L30: 40
B31: Mallorie, Swenson | C31: 08:03:00 | I31: 15:06:00 | J31: 08:03:12 | L31: 53
B32: Combs, Allison | C32: 08:07:00 | I32: 16:08:00 | J32: 08:36:16 | L32: 64
B33: Rydell, Lauryn | C33: 08:37:00 | I33: 16:31:00 | J33: 08:48:32 | L33: 66
B34: Fish, Adara | C34: 08:59:00 | I34: 17:17:00 | J34: 09:13:04 | L34: 71
B35: Merchant, Anna | C35: 08:44:00 | I35: 17:27:00 | J35: 09:18:24 | L35: 73
C36: Points | D36: 147 | E36: Place | H36: 4th/11 | I36: Gap time | K36: # Runners | L36: 73

Sheet State Boys
B3: Oct 28th 2017
B4: Weather:
B6: Varsity 5k | C6: 1st Mile | D6: 2m split | E6: 2m total | F6: 3m total | G6: 3m split | H6: 2&3 Avg | I6: Final Time | J6: Avg 1600 | K6: Place
B7: Meyer, Ryan | C7: 05:06:00 | D7: =+E7-C7 -> 05:39:00 | E7: 10:45:00 | F7: =+G7-E7 -> 05:33:14.400 | G7: =(+I7/5000)*4800 -> 16:18:14.400 | H7: =AVERAGE(F7,D7) -> 05:36:07.200 | I7: 16:59:00 | J7: =(+I7/5000)*1600 -> 05:26:04.800 | K7: =(+I7/5000)*1000 -> 03:23:48
B8: Arnold, Adam | C8: 05:15:00 | D8: 05:54:00 | E8: 11:09:00 | F8: 05:29:24 | G8: 16:38:24 | H8: 05:41:42 | I8: 17:20:00 | J8: 05:32:48 | K8: 03:28:00
B9: Lorenz, Cael | C9: 05:25:00 | D9: 05:57:00 | E9: 11:22:00 | F9: 05:44:14.400 | G9: 17:06:14.400 | H9: 05:50:37.200 | I9: 17:49:00 | J9: 05:42:04.800 | K9: 03:33:48
B10: Willimason, Joe | C10: 05:48:00 | D10: 05:45:00 | E10: 11:33:00 | F10: 05:41:52.800 | G10: 17:14:52.800 | H10: 05:43:26.400 | I10: 17:58:00 | J10: 05:44:57.600 | K10: 03:35:36
B11: Olson, Eric | C11: 05:32:00 | D11: 06:01:00 | E11: 11:33:00 | F11: 05:50:31.200 | G11: 17:23:31.200 | H11: 05:55:45.600 | I11: 18:07:00 | J11: 05:47:50.400 | K11: 03:37:24
B12: Roehl, Quinn | C12: 05:36:00 | D12: 06:12:00 | E12: 11:48:00 | F12: 05:49:55.200 | G12: 17:37:55.200 | H12: 06:00:57.600 | I12: 18:22:00 | J12: 05:52:38.400 | K12: 03:40:24
B13: Van de Bogert, Dylan | C13: 05:36:00 | D13: 06:15:00 | E13: 11:51:00 | F13: 05:57:28.800 | G13: 17:48:28.800 | H13: 06:06:14.400 | I13: 18:33:00 | J13: 05:56:09.600 | K13: 03:42:36
B14: Swanson, Brandon | C14: 05:48:00 | D14: 06:46:00 | E14: 12:34:00 | F14: 05:46:09.600 | G14: 18:20:09.600 | H14: 06:16:04.800 | I14: 19:06:00 | J14: 06:06:43.200 | K14: 03:49:12
B15: Hoverson, Brandon | C15: 05:57:00 | D15: 06:23:00 | E15: 12:20:00 | F15: 06:29:55.200 | G15: 18:49:55.200 | H15: 06:26:27.600 | I15: 19:37:00 | J15: 06:16:38.400 | K15: 03:55:24
B16: Harsell, Ethan | C16: 05:32:00 | I16: DNF
C17: Team place | E17: 12th | F17: Team points | H17: 339 | I17: Gap time | J17: =+I11-I7 -> 01:08:00

Sheet State Girls
B3: Meet - | C3: State Meet, Oct 28th, 2017 | I3: True 5K course
B4: Weather | J4: 5000
B5: 25, light wind, clear | I5: Course | J5: Valley City
B6: Varsity 5k | C6: 1st Mile | D6: 2m split | E6: 2m total | F6: 3m split | G6: 3m total | H6: 2&3 Avg | I6: Final Time | J6: Avg/mile | K6: Avg/1000 | L6: Place
B7: Rachel Torrey | C7: 05:36:00 | D7: =+E7-C7 -> 06:14:00 | E7: 11:50:00 | F7: =+G7-E7 -> 06:03:16.800 | G7: =(+I7/5000)*4800 -> 17:53:16.800 | H7: =AVERAGE(F7,D7) -> 06:08:38.400 | I7: 18:38:00 | J7: =(+I7/5000)*1600 -> 05:57:45.600 | K7: =(+I7/5000)*1000 -> 03:43:36 | L7: 6
B8: Weiss, Mikayla | C8: 06:37:00 | D8: 05:15:00 | E8: 11:52:00 | F8: 06:08:57.600 | G8: 18:00:57.600 | H8: 05:41:58.800 | I8: 18:46:00 | J8: 06:00:19.200 | K8: 03:45:12 | L8: 8
B9: Roehl, Alexis | C9: 05:36:00 | D9: 06:20:00 | E9: 11:56:00 | F9: 06:09:45.600 | G9: 18:05:45.600 | H9: 06:14:52.800 | I9: 18:51:00 | J9: 06:01:55.200 | K9: 03:46:12 | L9: 9
B10: Harrison, Lauren | C10: 06:06:00 | D10: 06:37:00 | E10: 12:43:00 | F10: 06:18:26.400 | G10: 19:01:26.400 | H10: 06:27:43.200 | I10: 19:49:00 | J10: 06:20:28.800 | K10: 03:57:48 | L10: 23
B11: Kindseth, Silje | C11: 06:09:00 | D11: 06:46:00 | E11: 12:55:00 | F11: 06:35:14.400 | G11: 19:30:14.400 | H11: 06:40:37.200 | I11: 20:19:00 | J11: 06:30:04.800 | K11: 04:03:48 | L11: 42
B12: Hynek, Hannah | C12: 06:09:00 | D12: 06:47:00 | E12: 12:56:00 | F12: 06:41:55.200 | G12: 19:37:55.200 | H12: 06:44:27.600 | I12: 20:27:00 | J12: 06:32:38.400 | K12: 04:05:24 | L12: 45
B13: Roehl, Sophia | C13: 06:14:00 | D13: 06:59:00 | E13: 13:13:00 | F13: 06:33:33.600 | G13: 19:46:33.600 | H13: 06:46:16.800 | I13: 20:36:00 | J13: 06:35:31.200 | K13: 04:07:12 | L13: 51
B14: Jackson, Maia | C14: 06:15:00 | D14: 07:16:00 | E14: 13:31:00 | F14: 06:54:55.200 | G14: 20:25:55.200 | H14: 07:05:27.600 | I14: 21:17:00 | J14: 06:48:38.400 | K14: 04:15:24 | L14: 80
B15: Hunter, Aislinn | C15: 06:18:00 | D15: 07:20:00 | E15: 13:38:00 | F15: 07:07:07.200 | G15: 20:45:07.200 | H15: 07:13:33.600 | I15: 21:37:00 | J15: 06:55:02.400 | K15: 04:19:24 | L15: 93
B16: Berry, Nora | C16: 06:35:00 | D16: 07:21:00 | E16: 13:56:00 | F16: 07:00:38.400 | G16: 20:56:38.400 | H16: 07:10:49.200 | I16: 21:49:00 | J16: 06:58:52.800 | K16: 04:21:48 | L16: 104
C17: Points | D17: 88 | G17: Place | H17: 2nd | I17: Gap time | J17: =+I11-I7 -> 01:41:00 | K17: Total runners | L17: 173

Sheet NTN-B
B3: Nov 12th 2017
B4: Weather
B6: Rising Stars | E6: Start 9:35 am | G6: Lane 13
C7: 1st Mile | D7: 2m split | E7: 2m total | F7: 3m split | G7: 3m total | H7: 2&3 Avg | I7: Final Time | J7: Avg/mile | K7: Avg/1000 | L7: Place
B8: Meyer, Ryan | C8: 05:27:00 | D8: =+E8-C8 -> 05:57:00 | E8: 11:24:00 | F8: =+G8-E8 -> 04:55:14.309 | G8: =(+I8/4990)*4800 -> 16:19:14.309 | H8: =AVERAGE(F8,D8) -> 05:26:07.154 | I8: 16:58:00 | J8: =(+I8/5000)*1600 -> 05:25:45.600 | K8: =(+I8/4990)*1000 -> 03:24:00.481 | L8: 37 | M8: 17:49 | N8: 19:44:00
B9: Williamson, Joe | C9: 05:49:00 | D9: =+E9-C9 -> 06:30:00 | E9: 12:19:00 | F9: =+G9-E9 -> 04:50:15.511 | G9: =(+I9/4990)*4800 -> 17:09:15.511 | H9: =AVERAGE(F9,D9) -> 05:40:07.756 | I9: 17:50:00 | J9: =(+I9/5000)*1600 -> 05:42:24 | K9: =(+I9/4990)*1000 -> 03:34:25.731 | L9: 106 | M9: 19:13
B10: Roehl, Quinn | C10: 06:44:00 | D10: =+E10-C10 -> 07:29:00 | E10: 14:13:00 | F10: =+G10-E10 -> 03:25:06.974 | G10: =(+I10/4990)*4800 -> 17:38:06.974 | H10: =AVERAGE(F10,D10) -> 05:27:03.487 | I10: 18:20:00 | J10: =(+I10/5000)*1600 -> 05:52:00 | K10: =(+I10/4990)*1000 -> 03:40:26.453 | L10: 143 | N10: 23:44:00
B11: Team place | D11: Team points | G11: Gap time | K11: # Runner | L11: 254

Sheet NXN-G
B3: Nov 12th, 2017
B4: Weather
B5: 45, no wind | I5: 14:20:00 | J5: Box 21
B6: Champion Girls | C6: 1st Mile | D6: 2m split | E6: 2m total | F6: 3m split | G6: 3m total | H6: 2&3 Avg | I6: Final Time | J6: Avg/mile | K6: Avg/1000 | L6: Place | M6: 2015 | O6: 2015 | P6: place | Q6: 2014 | R6: place
B7: Roehl, Alexis | C7: 05:34:00 | D7: =+E7-C7 -> 06:03:00 | E7: 11:37:00 | F7: =+G7-E7 -> 05:39:57.234 | G7: =(+I7/4990)*4800 -> 17:16:57.234 | H7: =AVERAGE(F7,D7) -> 05:51:28.617 | I7: 17:58:00 | J7: =(+I7/5000)*1600 -> 05:44:57.600 | K7: =(+I7/4990)*1000 -> 03:36:01.924 | L7: 20 | M7: 18:45 | N7: 60 | O7: 19:24:00 | P7: 108 | Q7: 19:21:00 | R7: 94
B8: Torrey, Rachel | C8: 05:34:00 | D8: 06:08:00 | E8: 11:42:00 | F8: 05:59:57.836 | G8: 17:41:57.836 | H8: 06:03:58.918 | I8: 18:24:00 | J8: 05:53:16.800 | K8: 03:41:14.549 | L8: 45 | M8: 19:38 | N8: 136 | O8: 19:16:00 | P8: 90 | Q8: 20:19:00 | R8: 180
B9: Weiss, Mikayla | C9: 05:35:00 | D9: 06:14:00 | E9: 11:49:00 | F9: 05:54:53.267 | G9: 17:43:53.267 | H9: 06:04:26.633 | I9: 18:26:00 | J9: 05:53:55.200 | K9: 03:41:38.597 | L9: 50 | M9: 19:59 | N9: 167 | O9: 21:25:00 | P9: 64 Open
B10: Harrison, Lauren | C10: 06:03:00 | D10: 06:36:00 | E10: 12:39:00 | F10: 06:11:15.631 | G10: 18:50:15.631 | H10: 06:23:37.816 | I10: 19:35:00 | J10: 06:16:00 | K10: 03:55:28.257 | L10: 153 | M10: 20:52 | N10: star38
B11: Kindseth, Sijle | C11: 06:13:00 | D11: 06:51:00 | E11: 13:04:00 | F11: 06:35:19.118 | G11: 19:39:19.118 | H11: 06:43:09.559 | I11: 20:26:00 | J11: 06:32:19.200 | K11: 04:05:41.483 | L11: 217 | M11: 20:30 | N11: Star32
B12: Roehl, Sophia | C12: 06:20:00 | D12: 07:22:00 | E12: 13:42:00 | F12: 06:30:01.443 | G12: 20:12:01.443 | H12: 06:56:00.721 | I12: 21:00:00 | J12: 06:43:12 | K12: 04:12:30.301 | L12: 231 | M12: 21:35 | N12: star55 | O12: 22:39:00 | P12: 132 open
B13: Berry, Nora | C13: 06:20:00 | D13: 07:11:00 | E13: 13:31:00 | F13: 06:43:54.589 | G13: 20:14:54.589 | H13: 06:57:27.295 | I13: 21:03:00 | J13: 06:44:09.600 | K13: 04:13:06.373 | L13: 233 | M13: 22:08 | N13: star63 | Q13: 18:38:00 | R13: 37
B14: Team place | C14: 12th/27 | D14: Team points | F14: 343 | G14: Gap time | H14: =+I10-I7 -> 01:37:00 | K14: # Runner | L14: 244
